{"text_format":"1","workbook":"xlsx","n_sheets":23,"sheets":["Cover Page","Facility Info","Operational Data","Operational Summary","Perf. Form 1","Energy Form 1","Permit Compliance","Improvements","Public Liasion","CO2 N2O","Residues","Water","Air (periodic)","Air (CEMS)","NOx","SO2","HCl","TOC","Particulates","NH3","CO 95% 10 min","CO 0.5 hourly","Template changes log"],"not_rendered":{"charts":8,"images":3,"macros":1,"external_links":0,"defined_names":23,"comments":0,"pivot_tables":0},"unopened":[],"bounds":{"document_bytes":16777216,"sheet_cells":100000,"rows_first":2000,"rows_last":500,"rows_between":2000,"halvings":0,"cell_chars":16384,"cell_head_chars":4096},"cells_cut":0,"cells_raw":0,"read":"whole","date_system":"1900"}

{"sheet":"Cover Page","index":0,"n_rows":53,"n_cols":11,"rows_kept":53,"cut":false,"hidden":false,"merged":[[48,2,48,3],[48,6,48,8],[52,2,52,3],[36,1,36,8],[40,2,40,8],[42,2,42,4],[44,2,44,4],[46,2,46,3],[46,6,46,8],[13,10,18,12],[34,1,34,8],[0,3,5,6],[7,1,23,8],[28,1,28,8],[30,1,30,8],[32,1,32,8]]}
[null,null,null,"Add company logo"]
[null,null,null,null,null,null,null,null,null,null,"Template version 25.1a (for incinerators) - 27/11/25"]
[]
[null,null,null,null,null,null,null,null,null,null,"Note that there is another version of this template available for co-incinerators"]
[]
[]
[]
[null,"Add photo"]
[]
[]
[]
[]
[null,null,null,null,null,null,null,null,null,null,"Notes:"]
[null,null,null,null,null,null,null,null,null,null,"This template may require adjustments by individual operators to meet specific reporting requirements as defined in the site Permit(s)"]
[]
[]
[]
[]
[]
[]
[]
[]
[]
[]
[]
[]
[]
[]
[null,"Annual Performance Report 2025"]
[]
[null,"Permit EPR/XP3833DK"]
[]
[null,"Ferrybridge 2"]
[]
[]
[]
[null,"enfinium Ferrybridge 2 Ltd"]
[]
[null,"Year:",2025]
[]
[null,"Address:","Stranglands Lane, Knottingley, West Yorkshire, WF11 8SQ"]
[]
[null,"Tel: ","01977 636936"]
[]
[null,"Email: ","john.warren@enfinium.co.uk"]
[]
[null,"Prepared by:","John Warren",null,null,"Position:","Environmental Manager"]
[]
[null,"Approved by:","Steve Tosney",null,null,"Position:","Plant Manager"]
[]
[null,"Version:",1]
[]
[null,"Issue Date:","2026-01-30"]

{"sheet":"Facility Info","index":1,"n_rows":18,"n_cols":11,"rows_kept":18,"cut":false,"hidden":false,"merged":[[4,0,13,8],[17,0,26,8],[4,10,12,13],[17,10,25,13]]}
[{"$f":"+'Cover Page'!$B$29","v":"Annual Performance Report 2025"},null,null,null,{"$f":"+'Cover Page'!$B$33","v":"Ferrybridge 2"}]
[]
["Plant Description and Design",null,null,null,null,null,null,null,null,null,"Notes:"]
[]
["Ferrybridge 2 is designed for the disposal of waste with energy recovery in an incineration plant and is permitted under Section 5.1 A(1)(b) the incineration of non-hazardous waste in an incineration plant with a capacity exceeding 3 tonnes per hour. The installation is located on land to the north of Ferrybridge 1 site, close to the A1(M). It lies approximately 1km northwest of the village of Ferrybridge, 2km northwest of Knottingley, 1.8km southeast of Ferry Fryston, and 3km northeast of Pontefract, at grid reference SE 472 254. The facility has a throughput limit of 725,000 tonnes per year of waste which can include refuse derived fuel, waste wood and commercial and industrial waste. The facility consists of two combustion lines and generates approximately 80 MWe of electricity, of which approximately 73 MWe is exported. Moving grate technology is used for burning the waste material. The furnace design ensures that a temperature of at least 850 degrees celcius for a period of at least two seconds is achieved in the combustion chamber. Auxillary burners firing a low sulphur gas oil are automatically triggered by online process monitoring equipment are used to ensure the temperature does not fall below 850 degrees celcius. Hot gases from the furnace pass in a boiler. Steam raised in the boiler is passed to a turbine to generate electricity for export to the National Grid.",null,null,null,null,null,null,null,null,null,"Include summary of plant design, design capacity, no. of combustion lines, electrical and heat capacity and any other general information that describes the facility, its location and purpose "]
[]
[]
[]
[]
[]
[]
[]
[]
[]
[]
["Summary of Operational Processes and Procedures"]
[]
["Key processes include waste reception, waste storage, water use, drainage, flue gas and air supply systems, boilers, treatment of exhaust gases, treatment and storage of residues and water recycling, stacks, devices and systems for controlling incineration operations, recording and monitoring conditions. The site has an Environmental Management System accredited to ISO 14001.  \n\nHealth and Safety management system covering all aspects of health and safety comprising policy, procedures, risk assessments, Key Performance Indicators (KPIs) and objectives reviewed periodically. The site has accreditation to ISO 45001:2018 for Health & Safety Management and ISO 9001 for Quality Management.\n\nMaintenance across the facilities is broken down in to reactive (breakdown) maintenance, and planned preventive maintenance. Preventive maintenance is conducted via the philosophy of Risk Based Inspections to ensure the safety of personnel and availability of the plant is cost effectively maintained.",null,null,null,null,null,null,null,null,null,"Include summary of key processes and procedures such as (but not limited to); waste reception, control rooms, grate, bed and boiler, energy & heat  generation, cooling systems, residue management, emission controls, health and safety systems, maintenance"]

{"sheet":"Operational Data","index":2,"n_rows":63,"n_cols":10,"rows_kept":63,"cut":false,"hidden":false,"merged":[[4,9,14,9],[16,9,20,9],[56,0,57,0],[25,1,44,1],[10,1,13,1],[17,1,19,1],[7,2,7,3],[4,2,4,3],[5,2,5,3],[6,2,6,3],[3,2,3,3]]}
[{"$f":"+'Cover Page'!$B$29","v":"Annual Performance Report 2025"},null,null,null,{"$f":"+'Cover Page'!$B$33","v":"Ferrybridge 2"}]
[]
["Operational Data"]
["Plant Size:",725000,"tonnes pa",null,null,null,null,null,null,"Notes:"]
["Nominal net thermal input:",80,"MWth",null,null,null,null,null,null,"* Export capacity = nominal generation capacity at the generator terminals minus nominal parasitic load.\n\n** CHP and district heating plants only - put N/A if no heat export.\n\n***  Combusted tonnage = tonnes delivered in period + (tonnes in bunker at start of period – tonnes in bunker at end of period), or equivalent calculation depending on plant type\n\n**** Availability Definition: The availability of a line is to be calculated by the number of hours the line reported Continuously Monitored emission levels to the Regulator through the calendar year divided by the total number of hours in that year. \n\nThe overall plant availability is calculated as the mean of all lines in the plant. For clarity this includes periods of abnormal operation.  \n\nRationale: The primary function of an Energy from Waste facility is the disposal of waste. It follows therefore that the availability of a plant is determined by the period of time a facility spends undertaking this activity.\n\n*****NCV of waste: This should be completed for all plants which have a boiler. Calculate using total thermal power produced by boiler/boiler efficiency, or other suitable calculation. \n"]
["Nominal electrical export capacity*:",73,"MWe"]
["Nominal heat export capacity**:","N/A","MWth"]
["No. of combustion lines:",2,"No. of steam turbines:",null,1]
[]
["Waste types received","Unit","Q1","Q2","Q3","Q4","Year Total","%"]
["Refuse Derived Fuel (incl. SRF) - H'hold/LA",null,179307.16,162796.72,158954.96,143845.51,{"$f":"SUM(C11:F11)","v":644904.35},{"$f":"IF(G11>0,G11/$G$12,\"-\")","v":1}]
["Total waste received",null,{"$f":"SUM(C11:C11)","v":179307.16},{"$f":"SUM(D11:D11)","v":162796.72},{"$f":"SUM(E11:E11)","v":158954.96},{"$f":"SUM(F11:F11)","v":143845.51},{"$f":"SUM(C12:F12)","v":644904.35}]
["Rejected Waste (No. loads)",null,0,5,7,0,{"$f":"SUM(C13:F13)","v":12},{"$f":"IF(G13>0,G13/$G$12,\"-\")","v":1.8607410540803454E-5}]
["Unprocessed waste transferred out",null,0,0,0,0,{"$f":"SUM(C14:F14)","v":0},{"$f":"IF(G14>0,G14/$G$12,\"-\")","v":"-"}]
["Total waste combusted ***",null,179030.82,159203.06,161576.95999999999,144270.09,{"$f":"SUM(C15:F15)","v":644080.92999999993}]
[]
["Energy Usage / Export","Unit","Q1","Q2","Q3","Q4","Year Total","KWh/te",null,"Password for protected cells\nA password has been set to prevent accidental  editing of cells with formulae. \nIf you still need to make an edit for some reason then the password = 1234"]
["Power generated at generator terminals","MWh",180669,174568.11,168145.98,151081.34,{"$f":"SUM(C18:F18)","v":674464.42999999993},{"$f":"IF(G18>0,G18*1000/$G$15,\"-\")","v":1047.1734196508503}]
["Power exported to grid and other external user(s)",null,165210,158988.20000000001,152759.53,137629,{"$f":"SUM(C19:F19)","v":614586.73},{"$f":"IF(G19>0,G19*1000/$G$15,\"-\")","v":954.20730745746516}]
["Power imported",null,15.18,0,0,0,15.18,{"$f":"IF(G20>0,G20*1000/$G$15,\"-\")","v":2.3568466776372345E-2}]
["Indicative parasitic load","%",{"$f":"IF(C18>0,(C18-C19)/C18,\"-\")","v":8.5565315577105089E-2},{"$f":"IF(D18>0,(D18-D19)/D18,\"-\")","v":8.9248316889035326E-2},9.1506499293054822E-2,8.9040380499669891E-2,{"$f":"IF(G18>0,1-G19/(G18+G20),\"-\")","v":8.8798651748716373E-2}]
["Thermal Energy Exported **",null,"N/A","N/A","N/A","N/A",{"$f":"SUM(C22:F22)","v":0},{"$f":"IF(G22>0,G22*1000/$G$15,\"-\")","v":"-"}]
["R1 value (if applicable)","R1","-","-","-","-",0.86]
[]
["Waste Disposal & Recovery","Unit","Q1","Q2","Q3","Q4","Year Total","% inputs"]
["APC Residues - produced","tonnes",7060.6,7474.72,7314.62,6560.14,{"$f":"SUM(C26:F26)","v":28410.079999999998},{"$f":"IF(G26>0,G26/$G$15,\"-\")","v":4.4109487917923608E-2}]
["IBA - produced",null,35239.019999999997,33250.699999999997,31438.14,26361.18,126289.04000000001,{"$f":"IF(G27>0,G27/$G$15,\"-\")","v":0.19607635332410792}]
["Metals recycling",null,2226.7800000000002,2026.18,2158.62,2015.6,{"$f":"SUM(C28:F28)","v":8427.18},1.3084038988702865E-2]
["APCr waste",null,19.54,0,2.77,16.66,{"$f":"SUM(C29:F29)","v":38.97},6.0504818858710821E-5]
["Waste oil",null,2.56,1.34,0,1.98,5.8800000000000008,9.1292875260256531E-6]
["Ion exchange resin",null,0.04,0,0.02,0,0.06,9.3155995163527055E-8]
["Oil contaminated waste",null,2.2000000000000002,0,3.3,0,5.5,8.5392995566566464E-6]
["APCr filter bags",null,0,0,1,0,1,1.5525999193921176E-6]
["Gases in pressurised containers",null,0,0,0.45,0,0.45,6.986699637264529E-7]
["Mixed packaging",null,0.28000000000000003,0.48,0.34,0.52,1.62,2.5152118694152306E-6]
["Mixed municipal waste",null,3.58,5.74,4.74,16.52,30.58,4.7478505535010949E-5]
["Wood waste",null,2,1.44,3.34,2.96,9.7399999999999984,1.5122323214879222E-5]
["Food waste",null,0.1,0.02,0.02,0,0.14000000000000001,2.1736398871489647E-7]
["Waste Electrical and Electronic Equipment",null,0.6,0,0,0,0.6,9.3155995163527047E-7]
["Rubble",null,0,37.700000000000003,36.72,81.58,156,2.4220558742517033E-4]
["Sewage",null,0,0.48,54.58,77.12,132.18,2.0522265734525011E-4]
["Mixed metals",null,0,0,21.56,9.34,30.9,4.797533750921643E-5]
["Aqueous liquid waste",null,0,0,74.06,1854.5,1928.56,2.9942821005428623E-3]
["Septic tank sludge",null,0,0,6.04,0,6.04,9.3777035131283902E-6]
[null,null,0,0,0,0,0,"-"]
[]
[]
["Raw Material Usage","Unit","Q1","Q2","Q3","Q4","Year Total","Qty./te"]
["Mains Water","ltrs",11462500,18744000,32538700,30019600,{"$f":"SUM(C49:F49)","v":92764800},{"$f":"IF(G49>0,G49/$G$15,\"-\")","v":144.02662100242591}]
["Other Water","ltrs",27160970,23294000,18121170,9002140,77578280,120.44803127457912]
["Ammonia","kgs",31486,41530,21156,25152,119324,0.18526243278154503]
["Activated Carbon","kgs",63056,65650,61941,54241,244888,0.38021308906009688]
["Lime / hydrated lime","kgs",3411000,3682890,3631620,3132840,13858350,21.516473092907752]
["Fuel oil","ltrs",68228,188420,248084,579825,1084557,1.6838831107761569]
[]
["Summary ","Line/Unit","Q1","Q2","Q3","Q4","Year Total",null,"Hrs in year "]
["Availability of waste combustion by line, hrs ****",1,2160,2086,2176,1760,{"$f":"SUM(C57:F57)","v":8182},{"$f":"+G57/$I$57","v":0.93401826484018269},8760,"Change this figure to 8784 in a leap year"]
[null,2,2157.1,2180.5,2131.3000000000002,1918.7,8387.6,{"$f":"+G58/$I$57","v":0.95748858447488594}]
["Hours of turbine operations, hrs",1,2157,2184,2185,2013,8539,{"$f":"+G59/$I$57","v":0.97477168949771686}]
["Net calorific value of waste*****","MJ/kg",12334,13066,12254,13051,{"$f":"AVERAGE(C60:F60)","v":12676.25}]
["Abnormal operation events","qty.",0,2,2,7,11,{"$f":"IF(G61>0,\"yes\",\"no\")","v":"yes"}]
["Abnormal operation duration","hours",0,1,1,3.5,5.5,{"$f":"+(G62)/I57","v":6.278538812785388E-4}]
["Permit Breaches","qty.",0,0,1,2,3,{"$f":"IF(G63>0,\"yes\",\"no\")","v":"yes"}]

{"sheet":"Operational Summary","index":3,"n_rows":37,"n_cols":11,"rows_kept":37,"cut":false,"hidden":false,"merged":[[29,10,37,13],[4,0,26,8],[4,10,13,13],[28,1,28,8],[29,2,29,8],[30,2,30,8],[31,2,31,8],[32,2,32,8],[33,2,33,8],[34,2,34,8],[35,2,35,8],[36,2,36,8],[39,2,39,8],[37,2,37,8],[38,2,38,8]]}
[{"$f":"+'Cover Page'!$B$29","v":"Annual Performance Report 2025"},null,null,null,{"$f":"+'Cover Page'!$B$33","v":"Ferrybridge 2"}]
[]
["Summary of Plant Operations and Maintenance during the reporting year",null,null,null,null,null,null,null,null,null,"Notes:"]
[]
["Operational Summary\n\nJanuary 2025 - Feed hopper cooling leak\nFebruary - Boiler trip during isolation of turbine hall drains pumps.\nMarch - None.\nApril - None.\nMay - Furnace explosion resulting in ID fan trip, delays during return to service due to burner faults, electrical fault due to comms failure.\nJune - Scheduled maintenance outage.\nJuly - Waste crane fault, ash extractor repairs.\nAugust - Turbine hotwell pump lost suction limit switch whilst pump 1 was isolated for maintenance, delays on start-up due to high temperature.\nSeptember - Grate cooling leak.\nOctober - Scheduled maintenance outage, grate ram hydraulic failure, grate cooling leak.\nNovember - Grate cooling leak.\nDecember - None.\n\nMaintenance Summary\n\nJANUARY\n•\tLine 1 grate cooling pump replaced\n•\tLine 1 primary air preheater leak repaired\n•\tLine 1 saturated steam valve bonnet overhauled\n•\tSiemens TCS PLC card replaced\n•\tLine 2 Hydrostep level indication repaired\nFEBRUARY\n•\tLine 2 rotary valve replaced\n•\tOverhaul of vibrating table drive system\n•\tInstallation of boiler sample station\n•\t11KV/400v Transformer inspection\n•\tWC 2 umbilical replacement\n•\tLine 2 recirc fan VFD replacement\n•\tACC Fan capacitor bank replacement\nMARCH\n•\tGeneral plant PM and service works\nAPRIL\n•\tProcess water pump 3 replaced\n•\tOverhaul of Line 2 APCR conveyor\n•\tFeed pump 2 overhaul\n•\tLine 1 Hydrostep level indication repaired\n•\tACC thermography check with drone\n•\tStatutory lift inspections\nMAY\n•\tReplaced both route 2 ash belts\n•\tWaste grab overhaul (Blue grab)\n•\tWC2 encoder repairs\n•\tLine 2 furnace temperature probe replacements\n•\tAnnual dry riser pressure test\nJUNE\n•\tLine 1 pitstop\nBoiler grate and refractory repairs\nJULY\n•\tGeneral plant PM and service works\n\n\nAUGUST\n•\tWaste cane 1 umbilical replaced\n•\tFire system service\n•\tWaste crane grab overhaul\nSEPTEMBER\n•\tGeneral maintenance and outage preparation\nOCTOBER\nMinor outage\nLine 1 and 2 – Mechanical \n• Full clean and inspection of internal boiler/furnace gas path. \n• Bunker side furnace nozzle “Y” piece replacements and material upgrade to SS316\n• 3rd pass LHS wall thermal spray application \n• NDT checks on boiler as part of the maintenance strategy – Vertex model\n• Inspection of mechanical grate on lines 1 and 2 inclusive of minor repairs. \n• Pass 1 - General refractory maintenance carried out. Defective areas replaced.\n• Inspections of site wide safety valves and test certs provided.\n• Thorough statutory inspections carried out as per PSSR WSE.\n• Full inspection and overhaul of ancillary plant equipment inclusive of Ash, FGT, APCR systems.\n• Site wide valve inspections and repairs.\n• Inconel repairs carried out to furnace side walls, front and rear.\n• Combustion fan maintenance strategy continued including inspection and replacement activities\n• Detailed ATEX area inspection, intrusive of all parts associated with the PAC system\n• Statutory stack inspections\n• Ram feeder hydraulics replaced as part of maintenance strategy\n• Defective grate rams replaced\n• Feed hopper internal plates replaced\nLine 1 and 2– Electrical\n• Circuit breaker service and protection testing\n• Quantum VFD service - The service included a general clean down, filter cleaning, terminal tightness, visual inspection, and module phase alignment.\n• Transmitter calibrations \n• Actuator servicing and health checks\nCommon – Mechanical\n• Turbine outage as per strategy completed inclusive of the generator\n• Turbine bypass valve internals replaced, line 1 and line 2\n• Turbine lube oil tank service carried out – Inspection and filter replacements\nCommon– Electrical \n• GCB circuit breaker inspection & maintenance \n• Circuit breaker service and protection testing \n• Transformer inspection and life time assessment completed\n• Transmitter calibrations \nNOVEMBER\n•\tGrate cooling repairs\n•\tEG10 SV7 servicing\n•\tHot true testing carried out on boiler safety valves. Boiler drum and superheater.\n•\tSite wide compressor major servicing commenced\n•\tWaste crane 2 hoist coupling replaced\nDECEMBER\n•\tLine 1 refractory repair\nLine 1 grate cooling feed pipework and undergrate repairs\n\n\n",null,null,null,null,null,null,null,null,null,"Include summary of key operational and/or maintenance activity undertaken in the year, such as any major component upgrades and/or replacements "]
[]
[]
[]
[]
[]
[]
[]
[]
[]
[]
[]
[]
[]
[]
[]
[]
[]
[]
[]
[]
[]
[]
[]
[{"$f":"+'Cover Page'!C39","v":2025},"Plant shut-downs"]
["Start date","End date","Reason for shut-down",null,null,null,null,null,null,null,"Provide a very brief reason for plant shut-down e.g. \"Shut-down prior to major outage\"; \"Emergency shut-down due to boiler tube leak\". All emergency shut-downs must be listed (irrespective of whether or not they were required to be reported to the EA). \n\nThere is no need to include periods of hot-standby here (e.g. to clear feed chute hopper blockages).\n\nFor clinical waste incinerators which require regular shut-downs for boiler cleaning, there is no need to record these here (only those prior to major outages, and emergency shut-downs). "]
["16/06/2025","19/06/2025","Line A1 pitstop outage - boiler grate and refractory repairs"]
["2025-04-09","2025-06-09","Line A2 boiler tube repairs"]
["2025-06-16","16/10/2025","Line A1 maintenance outage"]
["2025-10-10","18/10/2025","Line A2 maintenance outage"]
["23/10/2025","24/10/2025","Line A2 economiser screw repair"]
["27/10/2025","29/10/2025","Line A1 grate cooling water leak repair"]
["17/11/2025","21/11/2025","Line A1 grate repairs"]

{"sheet":"Perf. Form 1","index":4,"n_rows":69,"n_cols":10,"rows_kept":69,"cut":false,"hidden":false,"merged":[[65,0,66,8],[64,0,64,8],[31,0,31,1],[30,2,30,3],[30,4,30,5],[30,6,30,7],[30,8,30,9],[31,2,31,3],[31,4,31,5],[31,6,31,7],[31,8,31,9],[32,0,32,1],[30,0,30,1],[62,0,62,1],[48,0,48,9],[49,0,50,9],[58,0,58,1],[60,0,60,1],[61,0,61,1],[58,2,58,3],[47,0,47,3],[47,4,47,5],[47,7,47,8],[45,0,45,3],[29,0,29,1],[29,2,29,3],[29,4,29,5],[29,6,29,7],[29,8,29,9],[24,0,24,1],[24,2,24,3],[24,4,24,5],[24,6,24,7],[24,8,24,9],[23,0,23,1],[23,2,23,3],[23,4,23,5],[23,6,23,7],[23,8,23,9],[21,0,21,1],[21,2,21,3],[21,4,21,5],[21,6,21,7],[21,8,21,9],[22,0,22,1],[22,2,22,3],[22,4,22,5],[22,6,22,7],[22,8,22,9],[15,0,15,1],[15,2,15,3],[15,4,15,5],[15,6,15,7],[15,8,15,9],[17,0,17,1],[17,2,17,3],[17,4,17,5],[17,6,17,7],[17,8,17,9],[16,8,16,9],[16,0,16,1],[16,2,16,3],[16,6,16,7],[16,4,16,5],[45,4,45,5],[45,7,45,8],[46,0,46,3],[46,4,46,5],[46,7,46,8],[42,0,42,3],[42,7,42,8],[43,0,43,3],[43,4,43,5],[43,7,43,8],[44,0,44,3],[44,4,44,5],[44,7,44,8],[34,0,34,3],[34,4,34,5],[34,6,34,7],[34,8,34,9],[36,0,36,9],[37,0,39,9],[33,0,33,3],[33,4,33,5],[33,6,33,7],[33,8,33,9],[32,2,32,3],[32,4,32,5],[32,6,32,7],[32,8,32,9],[25,0,25,1],[25,2,25,3],[25,4,25,5],[25,6,25,7],[25,8,25,9],[26,0,26,1],[26,2,26,3],[26,4,26,5],[26,6,26,7],[26,8,26,9],[27,0,27,1],[27,2,27,3],[27,4,27,5],[27,6,27,7],[27,8,27,9],[28,0,28,1],[28,2,28,3],[28,4,28,5],[28,6,28,7],[28,8,28,9],[19,0,19,1],[19,2,19,3],[19,4,19,5],[19,6,19,7],[19,8,19,9],[20,0,20,9],[18,0,18,3],[18,4,18,5],[18,6,18,7],[18,8,18,9],[11,0,11,1],[11,2,11,3],[11,4,11,5],[11,6,11,7],[11,8,11,9],[12,0,12,1],[12,2,12,3],[12,4,12,5],[12,6,12,7],[12,8,12,9],[13,0,13,1],[13,2,13,3],[13,4,13,5],[13,6,13,7],[13,8,13,9],[14,0,14,1],[14,2,14,3],[14,4,14,5],[14,6,14,7],[14,8,14,9],[9,0,9,9],[10,0,10,1],[10,2,10,3],[10,4,10,5],[10,6,10,7],[10,8,10,9],[2,0,2,4],[2,6,2,8],[3,1,3,4],[5,3,5,4],[5,6,5,7],[8,0,8,1],[8,2,8,3],[8,4,8,5],[8,6,8,7],[8,8,8,9]]}
[{"$f":"+'Cover Page'!C39","v":2025}," Annual Reporting Performance Form 1"]
[]
[{"$f":"+'Cover Page'!B31","v":"Permit EPR/XP3833DK"},null,null,null,null,"Operator: ",{"$f":"+'Cover Page'!B37","v":"enfinium Ferrybridge 2 Ltd"}]
["Facility:",{"$f":"+'Cover Page'!B33:I33","v":"Ferrybridge 2"},null,null,null,"Form:","Performance 1"]
[]
["Reporting  Period from: ",null,null,"2025-01-01",null,"to:","2025-12-31"]
[]
[{"$f":"+A1","v":2025},"Annual Reporting of Waste Disposal and Recovery"]
["Waste Description",null,"Disposal Route(s)",null,"Disposal Tonnes",null,"Recovery Tonnes",null,"% / tonne of waste incinerated"]
["1) Hazardous Wastes"]
["APC Residues",null,"D9/D5",null,267,null,28143.08,null,{"$f":"IF((E11+G11)>0,(E11+G11)/'Operational Data'!$G$15, \"-\")","v":4.4109487917923615E-2}]
["APCr filter bags",null,"D15",null,1,null,null,null,{"$f":"IF((E12+G12)>0,(E12+G12)/'Operational Data'!$G$15, \"-\")","v":1.5525999193921176E-6}]
["APCr waste",null,"D15",null,39,null,null,null,{"$f":"IF((E13+G13)>0,(E13+G13)/'Operational Data'!$G$15, \"-\")","v":6.0551396856292583E-5}]
["Waste oil",null,"R13",null,null,null,6,null,{"$f":"IF((E14+G14)>0,(E14+G14)/'Operational Data'!$G$15, \"-\")","v":9.3155995163527059E-6}]
["Ion exchange resin",null,"D15",null,0,null,null,null,{"$f":"IF((E15+G15)>0,(E15+G15)/'Operational Data'!$G$15, \"-\")","v":"-"}]
["Oil contaminated waste",null,"R13",null,null,null,6,null,{"$f":"IF((E16+G16)>0,(E16+G16)/'Operational Data'!$G$15, \"-\")","v":9.3155995163527059E-6}]
["Aqueous liquid waste",null,"D9",null,1497.46,null,null,null,{"$f":"IF((E17+G17)>0,(E17+G17)/'Operational Data'!$G$15, \"-\")","v":2.3249562752929204E-3}]
["Gases in pressurised containers",null,"R13",null,null,null,0,null,{"$f":"IF((E18+G18)>0,(E18+G18)/'Operational Data'!$G$15, \"-\")","v":"-"}]
["Total Hazardous Waste",null,null,null,{"$f":"SUM(E11:F18)","v":1804.46},null,{"$f":"SUM(G11:H18)","v":28155.08},null,{"$f":"IF((E19+G19)>0,(E19+G19)/'Operational Data'!$G$15, \"-\")","v":4.651517938902492E-2}]
[]
["2) Non-Hazardous Wastes"]
["IBA - produced",null,"R5",null,null,null,126289,null,{"$f":"IF((E22+G22)>0,(E22+G22)/'Operational Data'!$G$15, \"-\")","v":0.19607629122011114}]
["Ferrous metals from bottom ash",null,"R4",null,null,null,8427,null,{"$f":"IF((E23+G23)>0,(E23+G23)/'Operational Data'!$G$15, \"-\")","v":1.3083759520717374E-2}]
["Mixed metals",null,"R4",null,null,null,31,null,{"$f":"IF((E24+G24)>0,(E24+G24)/'Operational Data'!$G$15, \"-\")","v":4.8130597501155644E-5}]
["Mixed packaging",null,"R13",null,null,null,2,null,{"$f":"IF((E25+G25)>0,(E25+G25)/'Operational Data'!$G$15, \"-\")","v":3.1051998387842352E-6}]
["Mixed municipal waste",null,"R13",null,null,null,31,null,{"$f":"IF((E26+G26)>0,(E26+G26)/'Operational Data'!$G$15, \"-\")","v":4.8130597501155644E-5}]
["Wood waste",null,"R3",null,null,null,10,null,{"$f":"IF((E27+G27)>0,(E27+G27)/'Operational Data'!$G$15, \"-\")","v":1.5525999193921174E-5}]
["Sewage waste",null,"D8",null,132,null,null,null,{"$f":"IF((E28+G28)>0,(E28+G28)/'Operational Data'!$G$15, \"-\")","v":2.0494318935975953E-4}]
["Waste Electrical and Electronic Equipment",null,"R13",null,null,null,1,null,{"$f":"IF((E29+G29)>0,(E29+G29)/'Operational Data'!$G$15, \"-\")","v":1.5525999193921176E-6}]
["Food waste",null,"R3",null,null,null,0,null,{"$f":"IF((E30+G30)>0,(E30+G30)/'Operational Data'!$G$15, \"-\")","v":"-"}]
["Rubble",null,"R13",null,null,null,156,null,{"$f":"IF((E31+G31)>0,(E31+G31)/'Operational Data'!$G$15, \"-\")","v":2.4220558742517033E-4}]
["Aqueous liquid waste",null,"D9",null,431.1,null,null,null,{"$f":"IF((E32+G32)>0,(E32+G32)/'Operational Data'!$G$15, \"-\")","v":6.6932582524994186E-4}]
["Septic tank sludge",null,"D8",null,6,null,null,null,{"$f":"IF((E33+G33)>0,(E33+G33)/'Operational Data'!$G$15, \"-\")","v":9.3155995163527059E-6}]
["Total Non-Hazardous Waste",null,null,null,{"$f":"SUM(E22:F33)","v":569.1},null,{"$f":"SUM(G22:H33)","v":134947},null,{"$f":"IF((E34+G34)>0,(E34+G34)/'Operational Data'!$G$15, \"-\")","v":0.21040228593633414}]
["TOTAL WASTE",null,null,null,{"$f":"+E34+E19","v":2373.56},null,{"$f":"+G34+G19","v":163102.08000000002},null,{"$f":"IF((E35+G35)>0,(E35+G35)/'Operational Data'!$G$15, \"-\")","v":0.25691746532535908}]
[]
["Operator’s comments :"]
[]
[]
[]
[]
[{"$f":"+A1","v":2025},"Annual Reporting of Water and Other Raw Material Usage"]
["Raw Material",null,null,null,"Usage",null,"Unit","Specific Usage",null,"Unit"]
["Mains Water",null,null,null,{"$f":"+'Operational Data'!G49/1000","v":92764.800000000003},null,"m3",{"$f":"IF(E44>0,E44/'Operational Data'!$G$15,\"-\")","v":0.14402662100242591},null,"m3/te"]
["Total Water",null,null,null,170343.08,null,"m3",{"$f":"IF(E45>0,E45/'Operational Data'!$G$15,\"-\")","v":0.26447465227700501},null,"m3/te"]
["Urea / Ammonia",null,null,null,{"$f":"+'Operational Data'!G51","v":119324},null,"kg",{"$f":"IF(E46>0,E46/'Operational Data'!$G$15,\"-\")","v":0.18526243278154503},null,"kg/te"]
["Activated Carbon",null,null,null,{"$f":"+'Operational Data'!G52","v":244888},null,"kg",{"$f":"IF(E47>0,E47/'Operational Data'!$G$15,\"-\")","v":0.38021308906009688},null,"kg/te"]
["Lime / hydrated lime / Sodium Bicarb.",null,null,null,{"$f":"+'Operational Data'!G53","v":13858350},null,"kg",{"$f":"IF(E48>0,E48/'Operational Data'!$G$15,\"-\")","v":21.516473092907752},null,"kg/te"]
["Operator’s comments :"]
[]
[]
[]
[]
[]
[]
[]
[]
[{"$f":"+A42","v":2025},"Annual Reporting of other performance indicators "]
["Parameter",null,"Results by Line"]
[null,null,"A1","A2","Turbine"]
["Operating hours for the year, hours",null,8182,8388,8539]
["Number of periods of abnormal operation, qty.",null,6,5]
["Cumulative hours of abnormal operation for this year, hours",null,3,2.5]
[]
["Operator’s comments :"]
[]
[]
[]
["Signed: ",null,null,null,null,null,"Date:"]

{"sheet":"Energy Form 1","index":5,"n_rows":21,"n_cols":7,"rows_kept":21,"cut":false,"hidden":false,"merged":[[14,0,14,8],[15,0,16,8],[11,0,11,2],[11,3,11,4],[11,6,11,8],[12,0,12,2],[12,3,12,4],[12,6,12,8],[9,0,9,2],[9,3,9,4],[9,6,9,8],[10,0,10,2],[10,3,10,4],[10,6,10,8],[2,6,2,8],[4,1,4,4],[6,3,6,4],[6,6,6,7],[8,0,8,2],[8,3,8,4],[8,6,8,8]]}
[{"$f":"+'Cover Page'!C39","v":2025}," Annual Reporting of Energy Usage/Export"]
[]
[{"$f":"+'Cover Page'!B31","v":"Permit EPR/XP3833DK"},null,null,null,null,"Operator: ",{"$f":"+'Cover Page'!B37","v":"enfinium Ferrybridge 2 Ltd"}]
[]
["Facility:",{"$f":"+'Cover Page'!B33:I33","v":"Ferrybridge 2"},null,null,null,"Form:","Energy 1"]
[]
["Reporting  Period from: ",null,null,{"$f":"+'Perf. Form 1'!D6:E6","v":"2025-01-01"},null,"to:",{"$f":"+'Perf. Form 1'!G6:H6","v":"2025-12-31"}]
[]
["Energy Source",null,null,"Energy Usage",null,"Unit","Specific Usage (KWh/tonne incinerated"]
["Electricity Produced",null,null,{"$f":"+'Operational Data'!G18","v":674464.42999999993},null,"MWh",{"$f":"+'Operational Data'!H18","v":1047.1734196508503}]
["Electricity Imported   ",null,null,{"$f":"+'Operational Data'!G20","v":15.18},null,"MWh",{"$f":"+'Operational Data'!H20","v":2.3568466776372345E-2}]
["Electricity Exported",null,null,{"$f":"+'Operational Data'!G19","v":614586.73},null,"MWh",{"$f":"+'Operational Data'!H19","v":954.20730745746516}]
["Gas Oil",null,null,1084.56,null,"tonnes",{"$f":"+'Operational Data'!H54","v":1.6838831107761569}]
[]
["Operator’s comments :"]
["Review of Combined Heat and Power (CHP) options. It is a permit requirement that the viability of CHP implementation is reviewed at least every four years. Information submitted in the annual report for 2022 provides relevant information and there are no updates for 2025."]
[]
[]
[]
[]
["Signed: ",null,null,null,null,null,"Date:"]

{"sheet":"Permit Compliance","index":6,"n_rows":32,"n_cols":11,"rows_kept":32,"cut":false,"hidden":false,"merged":[[31,1,31,3],[31,4,31,6],[31,7,31,8],[23,0,23,8],[16,0,16,8],[29,1,29,3],[29,4,29,6],[29,7,29,8],[30,1,30,3],[30,4,30,6],[30,7,30,8],[27,1,27,3],[27,4,27,6],[27,7,27,8],[28,1,28,3],[28,4,28,6],[28,7,28,8],[25,1,25,3],[25,4,25,6],[25,7,25,8],[26,1,26,3],[26,4,26,6],[26,7,26,8],[22,0,22,8],[17,7,17,8],[17,1,17,2],[17,3,17,5],[19,3,19,5],[20,3,20,5],[21,3,21,5],[19,1,19,2],[8,10,18,10],[24,1,24,3],[24,4,24,6],[24,7,24,8],[20,1,20,2],[21,1,21,2],[14,0,14,1],[14,2,14,4],[14,5,14,8],[7,0,7,1],[7,2,7,8],[8,0,8,1],[8,2,8,4],[8,5,8,8],[9,0,9,1],[9,2,9,4],[9,5,9,8],[10,0,10,1],[10,2,10,4],[10,5,10,8],[11,0,11,1],[11,2,11,4],[11,5,11,8],[12,0,12,1],[12,2,12,4],[12,5,12,8],[13,0,13,1],[13,2,13,4],[13,5,13,8]]}
[{"$f":"+'Cover Page'!$B$29","v":"Annual Performance Report 2025"},null,null,null,{"$f":"+'Cover Page'!$B$33","v":"Ferrybridge 2"}]
[]
["Summary of Permit Compliance"]
[]
["Compliance with permit limits for continuously monitored pollutants"]
[]
["The plant met its emission limits as shown in the table below:"]
["Substance",null,"Percentage time compliant during operationNote 1",null,null,null,null,null,null,null,"Notes:"]
[null,null,"Half-hourly limit",null,null,"Daily limit",null,null,null,null,"Note 1: Please report to 2 decimal places, i.e. xx.xx%\n\nNote 2: Please enter into this table any permit non-compliances that the EA has given a CCS score for. Please also enter any other non-compliances which you have notified to the EA (e.g. ELV exceedances) but which have not yet been assessed by the EA. There is no need to enter any notifications which were subsequently assessed by the EA not to be permit breaches.  \n\nNote 3: Please enter information here (rather than just referencing the notifications that were sent to the EA) including where relevant the incineration line reference, pollutant and value of the measured result for any ELV exceedances.   \n\n"]
["Particulates",null,1,null,null,1]
["Oxides of nitrogen",null,1,null,null,1]
["Sulphur dioxide",null,1,null,null,1]
["Carbon monoxide",null,"100.00% 95% of 10-min averages",null,null,0.99450000000000005]
["Total organic carbon",null,1,null,null,1]
["Hydrogen chloride",null,0.99990000000000001,null,null,0.99729999999999996]
[]
["Summary of non-compliances under the permit Note 2"]
["Date","Summary of non-compliance Note 3",null,"Reason ",null,null,"Measures taken to prevent reoccurrence","CCS score if applicable*"]
[null,null,null,null,null,null,null,"Impact","Root cause"]
["2025-09-30","Exceedance of the HCl 1/2 hourly ELV for two 1/2 periods and exceedance of the HCl daily averge ELV",null,"Under investigation",null,null,"Under investigation, measures to be decided."]
["2025-10-09","Exceedance of the CO daily average ELV",null,"Furnace explosions due to gas cannisters in fuel increased CO levels which did not reduce sufficiently before end of daily monitoring period",null,null,"Adjustment of boiler control (DCS) settings, continued waste inspections at site level including investment in advanced camera technology to detect non-compliant waste, continued engagement and dialogue with fuel suppliers on improving their controls on waste supplied to site, continued lobbying of Government through ESA to improve the national problem of gas cylinders in waste."]
["2025-11-26","Exceedance of the CO daily average ELV",null,"Furnace explosions due to gas cannisters in fuel increased CO levels which did not reduce sufficiently before end of daily monitoring period",null,null,"Adjustment of boiler control (DCS) settings, continued waste inspections at site level including investment in advanced camera technology to detect non-compliant waste, continued engagement and dialogue with fuel suppliers on improving their controls on waste supplied to site, continued lobbying of Government through ESA to improve the national problem of gas cylinders in waste."]
["*If the Environment Agency (EA) has given a Compliance Classification Scheme (CCS) score due to a permit non-compliance it should be entered here (CCS4 = No impact; CCS3 = Minor impact; CCS2 = Significant impact; CCS1 = Major impact). If the EA has not yet assessed a non-compliance which you have notified to them, these columns should be left blank. Enter N/A if no score was given for the root cause.  "]
["Summary of any complaints received and actions to taken to resolve them."]
["Date","Summary of complaint [including Line/Reference]",null,null,"Reason (including whether substantiated by the operator or the EA)",null,null,"Measures taken to prevent reoccurrence"]
["2025-02-07","Odour complaint from the EA (NIRS 02356111)",null,null,"Investigated and found unsubstantiated, report sent to the EA.",null,null,"Continued compliance with permit conditions"]
["2025-04-24","Dust and odour complaints received from the EA (NIRS 02381397 & 02381388)",null,null,"Investigated and found unsubstantiated, report sent to the EA",null,null,"Continued compliance with permit conditions"]
["2025-04-29","External complaint about RDF wagons queuing on Kirkhaw Lane and roads in the vicinity of Ferrybridge.",null,null,"Investigated and found unsubstantiated",null,null,"Continued compliance with permit and planning conditions"]
["2025-05-22","External complaint from local resident complaining about a humming noise.",null,null,"Investigated and found unsubstantiated",null,null,"Continued compliance with permit conditions"]
["2025-05-22","External complaint from a local resident living 5km from site about dust on his cars.",null,null,"Investigated and found unsubstantiated",null,null,"Continued compliance with permit conditions"]
["2025-07-09","External complaint about RDF wagons queuing on Kirkhaw Lane",null,null,"Investigated and found to be substantiated. Contact with local resident to advise of actions taken.",null,null,"Increased monitoring of access road and liaison with fuel suppliers/hauliers"]
["2025-08-04","Odour complaint received from the EA (NIRS 02412011)",null,null,"Investigated and found unsubstantiated, report sent to the EA.",null,null,"Continued compliance with permit and planning conditions"]

{"sheet":"Improvements","index":7,"n_rows":29,"n_cols":5,"rows_kept":29,"cut":false,"hidden":false,"merged":[[27,0,27,8],[28,0,30,8],[4,0,4,8],[5,0,13,8],[15,0,15,8],[16,0,19,8],[21,0,21,8],[22,0,25,8]]}
[{"$f":"+'Cover Page'!$B$29","v":"Annual Performance Report 2025"},null,null,null,{"$f":"+'Cover Page'!$B$33","v":"Ferrybridge 2"}]
[]
["Summary of Plant Improvements"]
[]
["Summary of any efficiency improvements that have been completed within the year."]
["Line 2 recirc fan VFD replacement\nProcess water pump 3 replaced\nOverhaul of Line 2 APCR conveyor\nFeed pump 2 overhaul\nWaste grab overhaul \nWaste crane grab overhaul\nFull clean and inspection of internal boiler/furnace gas path\nFull inspection and overhaul of ancillary plant equipment inclusive of Ash, FGT, APCR systems.\nCombustion fan maintenance strategy continued including inspection and replacement activities\nRam feeder hydraulics replaced as part of maintenance strategy\nQuantum VFD service \nSite wide compressor major servicing \n"]
[]
[]
[]
[]
[]
[]
[]
[]
[]
["Summary of any permit improvement conditions that have been completed within the year and the resulting environmental benefits."]
["None"]
[]
[]
[]
[]
["Summary of any changes to the plant or operating techniques which required a variation to the permit and a summary of the resulting environmental impact."]
["None"]
[]
[]
[]
[]
["Summary of any other improvements made to the plant or planned to be made and a summary of the resulting environmental benefits."]
["Climate change risk assessment and adaptation plan created and implemented. This has allowed us to model the risk to site associated with climate change and identified actions to mitigate the risk over time. "]

{"sheet":"Public Liasion","index":8,"n_rows":17,"n_cols":5,"rows_kept":17,"cut":false,"hidden":false,"merged":[[16,0,16,8],[11,0,12,1],[11,2,12,8],[13,0,14,1],[13,2,14,8],[10,0,10,1],[10,2,10,8],[5,0,5,1],[5,2,5,8],[6,0,7,1],[6,2,7,8],[9,0,9,8]]}
[{"$f":"+'Cover Page'!$B$29","v":"Annual Performance Report 2025"},null,null,null,{"$f":"+'Cover Page'!$B$33","v":"Ferrybridge 2"}]
[]
["Details of Public & Stakeholder Liaison"]
[]
["Summary of events held during the reporting year."]
["Date",null,"Description"]
["2025-07-22",null,"Transport Liaison Group meeting"]
[]
[]
["List of events planned for next year"]
["Date",null,"Description"]
["Q1 2026",null,"Community liaison group meeting"]
[]
["Q3 2026",null,"Transport liaison group meeting"]
[]
[]
["If you wish to be involved in the public liaison programme, please contact John Warren"]

{"sheet":"CO2 N2O","index":9,"n_rows":26,"n_cols":6,"rows_kept":26,"cut":false,"hidden":false,"merged":[[19,0,19,1],[20,0,20,1],[21,0,21,1],[22,0,22,1],[23,0,23,1],[10,0,10,1],[11,0,11,1],[14,0,14,1],[15,0,15,1],[16,0,16,1],[6,5,9,5],[23,2,23,3],[26,1,26,3],[16,2,16,3],[4,0,4,3],[9,0,9,3],[18,0,18,3],[13,0,13,3],[12,0,12,1],[8,2,8,3],[11,2,11,3],[20,2,20,3],[5,0,5,1],[6,0,6,1],[7,0,7,1],[8,0,8,1]]}
[{"$f":"+'Cover Page'!$B$29","v":"Annual Performance Report 2025"},null,{"$f":"+'Cover Page'!$B$33","v":"Ferrybridge 2"}]
[]
["Carbon dioxide emissions and biogenic content of waste inputs",null,null,null,null,"Notes:"]
[]
["Carbon dioxide emissions (all types of plant)"]
["Annual mass of carbon dioxide released",null,"tonnes ",800324.57]
["Annual mass of carbon dioxide released per tonne of waste burned",null,"t CO2 / t waste ",1.24,null,"Note 1: All permits require operators to continuously monitor CO2 to EN14181 and flow to BS EN 16911-2 (unless otherwise agreed in writing). Operators must therefore use the results from these instruments to calculate their annual CO2 emissions. Where an operator does not have a flow meter calibrated to BS EN 16911-2, the averaged flow measurement from that year's periodic monitoring can be used instead. If the plant does not have calibrated CO2 CEMS, a suitably justified emissions factor can be used. \n\n"]
["Annual mass of carbon dioxide released per MWh of energy exported",null,"t CO2 / MWh export ",1.3]
["Description of how annual carbon dioxide mass emission has been calculated. \nSee Note 1",null,"CEMS CO2% calculated via Annual mass emissions report and converted into kg"]
["Nitrous oxide emissions (only plants which use ammonia or urea to abate NOx emissions)"]
["Annual mass emissions of nitrous oxide",null,"tonnes N2O",3.79]
["Description of how annual nitrous oxide mass emission has been calculated\nSee Note 2",null,"CEMS data has been used to calculate the mass emissions",null,null,"Note 2: All permits require operators to continuously monitor N2O to EN14181 and flow to BS EN 16911-2, unless otherwise agreed in writing. Operators must therefore use the results from these instruments to calculate their annual N2O emissions. Where an operator does not have a flow meter calibrated to BS EN 16911-2, the averaged flow measurement from periodic monitoring can be used instead. If the plant does not have calibrated N2O CEMS, data from periodic monitoring or a suitably justified emissions factor can be used instead."]
["Total annual carbon dioxide + nitrous oxide emissions. \nSee Note 3. ",null,"tonnes CO2e",{"$f":"D6+D11","v":800328.36},null,"Note 3: Total annual carbon dioxide and nitrous oxide emissions reported as carbon dioxide equivalent where 1 tonne nitrous oxide is equivalent to 265 tonnes carbon dioxide."]
["Biogenic CO2 emissions (See Note 4)",null,null,null,null,"Note 4: Only plants combusting residual municipal waste, refuse derived fuel or solid recovered fuel need complete this section. "]
["Percentage of total carbon dioxide emissions arising from biogenic waste",null,"%",0.5]
["No. of measurements undertaken",null,"Number",22]
["Description of how percentage biogenic carbon dioxide emissions have been measured or calculated.\nSee Note 5",null,"Biogenic carbon has been measured by using Amesa B monitors. The cartridges have been sent off monthly for analysis of the C14, to give a percentage for each month and each line. The average results for January 25- November 25 has been used (December 2025 results not yet received). ",null,null,"Note 5: The results from C14 sampling should be used if this is carried out at the plant (either via an installed sampler or from spot samples).  \nOtherwise, as an approximation (and in lieu of any more accurate metrics which may be developed in future), the measured or estimated biogenic fraction by net calorific value (see Note 6) can be assumed to be the same as the biogenic CO2 fraction of the total CO2 emissions from the plant. "]
[]
["Biogenic fraction of waste feedstock (See Note 4)"]
["Yearly average biogenic percentage of the waste by net calorific value (NCV)",null,"%",0.52100000000000002]
["Description of how biogenic percentage (by NCV) has been calculated or estimated. \nSee Note 6",null,"From fuel model which takes weighbridge data and RDF test results sampled at source (calculated from lab analysis via a UKAS accredited method ISO 21644:2021), then weights each suppliers tonnage on a heat input basis. Dataset available for this report is January 2025 to November 2025.",null,null,"Note 6: If C14 sampling is carried out at the plant, the methodology set out in the embedded document entitled \"Renewable Energy Association Energy Content of Fuels - Description of Method\" embedded below can be used to calculate the biogenic percentage by net calorific value. Otherwise, data from waste sampling or BIOMA software can be used; or if none of these are available, an estimated figure with justification or a figure assumed on the basis of up-to-date industry data can be used. "]
["Yearly average biogenic percentage of the waste by mass",null,"%",0.56599999999999995]
["If waste sampling undertaken, no. of samples used to ascertain average biogenic percentages above",null,"Number",2317]
["Description of how biogenic percentage (by mass) has been calculated or estimated. \nSee Note 7",null,"From fuel model which takes weighbridge data and RDF test results sampled at source (calculated from lab analysis via a UKAS accredited method ISO 21644:2021), then weights each suppliers tonnage on a heat input basis. Dataset available for this report is January 2025 to November 2025.",null,null,"Note 7: Where available, data from waste sampling should be used; otherwise, an estimated figure with justification can be used, or a figure assumed on the basis of up-to-date industry data. "]
[]
[null,"Comments:"]

{"sheet":"Residues","index":10,"n_rows":35,"n_cols":9,"rows_kept":35,"cut":false,"hidden":false,"merged":[[2,0,2,6],[35,0,36,6],[31,3,31,4],[34,0,34,6],[26,0,27,1],[28,0,28,1],[29,0,29,1],[30,0,30,1],[31,0,31,1],[28,3,28,4],[29,3,29,4],[28,5,28,6],[29,5,29,6],[30,5,30,6],[31,5,31,6],[32,0,32,6],[30,3,30,4],[26,2,27,2],[27,3,27,4],[27,5,27,6],[26,3,26,6],[25,0,25,6],[3,8,5,11],[15,0,15,6],[16,0,16,1],[16,2,16,6],[12,0,13,6],[3,0,7,6],[21,0,22,1],[21,2,22,6],[17,0,18,1],[17,2,18,6],[19,0,20,1],[19,2,20,6]]}
[{"$f":"+'Cover Page'!$B$29","v":"Annual Performance Report 2025"},null,null,null,{"$f":"+'Cover Page'!$B$33","v":"Ferrybridge 2"}]
[]
["Summary of Residue Handling for the reporting year"]
["Incinerator Bottom Ash (IBA) from Ferrybridge 2 is stored in the Ash Bunker Building and then outloaded by the ash crane grab to receiving dumper trucks. The IBA is collected and taken to the Blue Phoenix Ferrybridge (EPR/QP3034JW) site, which is located immediately to the north of Ferrybridge 2. Movement of the IBA is carried out by dumper truck via a predominantly internal road network to the Blue Phoenix site where it is processed into Incinerator Bottom Ash Aggregate (IBAA). Blue Phoenix remove additional ferrous and non-ferrous metals from the IBA and then sort and size the IBA into different sizes. The resulting IBAA product is sent to construction companies as an aggregate.\n\nAPCr is collected in silos and then discharged to receiving tanker for off-site disposal. The APCr is transported to OCO Ltd in Leeds (EPR/TP3737YG) and Castle Environmental Ltd in Ilkeston, Derbyshire (EPR/AP3337SJ). OCO recycles 100% of IBA received, Castle Environmental recycles approximately 55% of the APCr received.",null,null,null,null,null,null,null,"Include in here a summary of residue handling regimes and destinations "]
[]
[]
[]
[]
[]
["Residue Quality Monitoring Requirements"]
[]
["Summary of monitoring undertaken and compliance"]
["IBA and APCr is sampled in accordance with the ESA IBA Protocol (January 2018) and enfinium Residue Management Procedure (T2-ENF-ENV). Monthly IBA hazard assessments and annual full hazardous property assessments, quarterly IBA and APC residue compliance monitoring, annual characterisation of IBA and APC residue. Analysis and reporting carried out by WRc."]
[]
[]
["Commentary on any specific events"]
["Date & Event",null,"Description"]
["October 2024 - IBA and APC Annual Characterisation Report",null,"Results of the annual characterisation of IBA and APC residues from Ferrybridge 2, including a full hazardous property assessment of IBA as required by the ESA Protocol 2018."]
[]
["2025-09-01",null,"IBA assessment (IBA2 sample) showed that the sample was below limits for HP4 (irritant), HP7 (carcinogenic) and HP8 (corrosive), but exceeded the concentration limit for HP14 (ecotoxic) due to elevated concentrations of lead and copper found in aqua regia testing."]
[]
["2025-12-01",null,"IBA assessment (IBA2 sample) showed that the sample was below limits for HP4 (irritant), HP7 (carcinogenic) and HP8 (corrosive), but exceeded the concentration limit for HP14 (ecotoxic) due to elevated concentrations of lead and copper found in aqua regia testing."]
[]
[]
[]
["Residue Quality Monitoring Results"]
["Parameter (unit) ",null,"Limit*","Normal Operation "]
[null,null,null,"Bottom ash  ",null,"APC Residues"]
["Loss on Ignition (average %)",null,"<5%",1.21]
["Total Organic Carbon (average %)",null,"<3%",0.36]
["No. of Assessments Undertaken",null,"---",24,null,4]
["No. of Hazardous Results",null,"---",2]
["* The permit will specify a limit of either 5% loss on ignition or 3% total organic carbon. If both are measured anyway, please enter the results here, even where the limit does not apply. "]
[]
["Comments :"]

{"sheet":"Water","index":11,"n_rows":16,"n_cols":9,"rows_kept":16,"cut":false,"hidden":false,"merged":[[14,0,14,2],[14,3,14,4],[10,0,11,1],[10,2,11,8],[15,0,15,2],[15,3,15,4],[5,0,6,8],[8,0,8,8],[9,0,9,1],[9,2,9,8],[13,0,13,8]]}
[{"$f":"+'Cover Page'!$B$29","v":"Annual Performance Report 2025"},null,null,null,{"$f":"+'Cover Page'!$B$33","v":"Ferrybridge 2"}]
[]
["Emissions to Water"]
[]
["Summary of monitoring undertaken and compliance"]
["Frequent sampling and analysis of attenuation pond water, tested for pH and conductivity, odour and appearance prior to discharge to Fryston Beck. Elevated conductivity during warm summer months due to evaporation and lack of freshwater influx. Discharges tfrom pond to watercourse were not permitted during this time."]
[]
[]
["Commentary on any specific events"]
["Date & Event",null,"Description"]
["N/A",null,"N/A"]
[]
[]
["Emissions to Water / Sewer"]
["Parameter",null,null,"Monitoring Frequency",null,"Limit","Target","Max.","Average"]
["No parameters set in permit",null,null,"None",null,"None","None","None","None"]

{"sheet":"Air (periodic)","index":12,"n_rows":58,"n_cols":8,"rows_kept":58,"cut":false,"hidden":false,"merged":[[4,0,4,6],[57,0,57,6],[58,0,59,6],[55,0,55,1],[55,3,55,4],[56,0,56,1],[56,3,56,4],[52,0,52,1],[52,3,52,4],[53,0,53,1],[53,3,53,4],[54,0,54,1],[54,3,54,4],[49,0,49,1],[49,3,49,4],[50,0,50,1],[50,3,50,4],[51,0,51,1],[51,3,51,4],[46,0,46,1],[46,3,46,4],[47,0,47,1],[47,3,47,4],[48,0,48,1],[48,3,48,4],[43,0,43,6],[44,0,45,1],[44,2,45,2],[44,3,45,4],[44,5,44,6],[13,7,14,9],[15,7,16,7],[15,8,16,8],[15,9,16,9],[18,3,18,4],[13,3,13,4],[14,3,14,4],[15,3,15,4],[16,3,16,4],[17,3,17,4],[21,3,21,4],[22,3,22,4],[23,3,23,4],[24,3,24,4],[31,3,31,4],[25,3,25,4],[26,3,26,4],[28,3,28,4],[38,0,38,6],[19,0,19,1],[20,0,20,1],[21,0,21,1],[34,3,34,4],[35,3,35,4],[33,0,33,1],[34,0,34,1],[35,0,35,1],[36,0,36,1],[24,0,24,1],[32,3,32,4],[27,3,27,4],[33,3,33,4],[19,3,19,4],[20,3,20,4],[39,0,40,6],[25,0,25,1],[26,0,26,1],[22,0,22,1],[23,0,23,1],[37,0,37,1],[27,0,27,1],[28,0,28,1],[29,0,29,1],[30,0,30,1],[31,0,31,1],[32,0,32,1],[37,3,37,4],[29,3,29,4],[30,3,30,4],[36,3,36,4],[16,0,16,1],[17,0,17,1],[18,0,18,1],[13,0,13,1],[14,0,14,1],[15,0,15,1],[12,0,12,1],[11,3,11,4],[12,3,12,4],[9,0,10,1],[9,5,9,6],[9,3,10,4],[9,2,10,2],[5,7,8,10],[9,7,11,10],[8,0,8,6],[5,0,6,6],[11,0,11,1]]}
[{"$f":"+'Cover Page'!$B$29","v":"Annual Performance Report 2025"},null,null,null,{"$f":"+'Cover Page'!$B$33","v":"Ferrybridge 2"}]
[]
["Emissions to Air (periodically monitored)"]
[]
["Summary of monitoring undertaken, standards used and compliance",null,null,null,null,null,null,"Notes:"]
["Bi-annual monitoring undertaken in January 2025 (Lines A1 and A2), September 2025 (Line A1) and November 2025 (Line A2). Standards used include EN 14385, MID 14385, EN 1948, ISO 11338, ISO 15713, EN 14789, TGN M22 and EN 16911-1 (MID). H1 and H2 test results demonstrated full compliance with emission limit values.",null,null,null,null,null,null,"Template may require adjustment for any bespoke monitoring requirements of permit - please also check that all default ELV values, reference periods and the stated oxygen reference value match those for your plant, and edit if necessary!"]
[]
[]
["Results of emissions to air that are periodically monitored - oxygen reference 11% "]
["Substance",null,"Ref. Period","Emission Limit Value",null,"Average",null,"User to add additional tables as necessary, depending on whether quarterly or bi-annual reporting is required for the compliance year"]
[null,null,null,null,null,"A1","A2"]
["Hydrogen fluoride",null,"1 hr","1 mg/m3",null,"< 0.047 ","< 0.047 "]
["Cd and Tl and their compounds",null,"0.5-8hrs","0.02 mg/m3",null,9.6000000000000002E-4,1.1999999999999999E-3]
["Hg and its compounds",null,"0.5-8hrs","0.02 mg/m3",null,2.5999999999999999E-3,1.9E-3]
["Sb, As, Pb, Cr, Co, Cu, Mn, Ni, V and their compounds",null,"0.5-8hrs","0.3 mg/m3",null,2.8000000000000001E-2,4.7E-2]
["Dioxins & Furans (I-TEQ)",null,"6-8hrs","0.06 ng/m3",null,7.4000000000000003E-3,1.0999999999999999E-2]
["PCBs (WHO-TEQ Humans / Mammals)",null,"6-8hrs","None set ng/m3",null,6.4000000000000005E-4,5.1999999999999995E-4]
["PCBs (WHO-TEQ Fish)",null,"6-8hrs","None set ng/m3",null,3.1000000000000001E-5,2.5999999999999998E-5]
["PCBs (WHO-TEQ Birds)",null,"6-8hrs","None set ng/m3",null,1.4E-3,1.4E-3]
["Dioxins & Furans (WHO-TEQ Humans / Mammals)",null,"6-8hrs","None set ng/m3",null,6.7999999999999996E-3,0.01]
["Dioxins & Furans (WHO-TEQ Fish)",null,"6-8hrs","None set ng/m3",null,7.7000000000000002E-3,1.0999999999999999E-2]
["Dioxins & Furans (WHO-TEQ Birds)",null,"6-8hrs","None set ng/m3",null,1.6E-2,2.5999999999999999E-2]
["Anthanthrene",null,"6-8hrs","None set µg/m3",null,"< 0.0015","< 0.0018"]
["Benzo(a)anthracene",null,"6-8hrs","None set µg/m3",null,"< 0.0015","< 0.0018"]
["Benzo(a)pyrene",null,"6-8hrs","None set µg/m3",null,"< 0.0015","< 0.0018"]
["Benzo(b)fluoranthene",null,"6-8hrs","None set µg/m3",null,"< 0.0015","< 0.0018"]
["Benzo(b)naptho(2,1-d) thiophene",null,"6-8hrs","None set µg/m3",null,"< 0.0015","< 0.0018"]
["Benzo(c)phenanthrene",null,"6-8hrs","None set µg/m3",null,"< 0.0015","< 0.0018"]
["Benzo(ghi)perylene",null,"6-8hrs","None set µg/m3",null,"< 0.0015","< 0.0018"]
["Benzo(k)fluoranthene",null,"6-8hrs","None set µg/m3",null,"< 0.0015","< 0.0018"]
["Cholanthrene",null,"6-8hrs","None set µg/m3",null,"< 0.0015","< 0.0018"]
["Chrysene",null,"6-8hrs","None set µg/m3",null,"< 0.0015","< 0.0018"]
["Cyclopenta(cd)pyrene",null,"6-8hrs","None set µg/m3",null,"< 0.0015","< 0.0018"]
["Dibenzo(ai)pyrene",null,"6-8hrs","None set µg/m3",null,"< 0.0015","< 0.0018"]
["Dibenzo(ah)anthracene",null,"6-8hrs","None set µg/m3",null,"< 0.0015","< 0.0018"]
["Fluoranthene",null,"6-8hrs","None set µg/m3",null,2.5999999999999999E-2,1.7999999999999999E-2]
["Indeno(123-cd) pyrene",null,"6-8hrs","None set µg/m3",null,"< 0.0015","< 0.0018"]
["Naphthalene",null,"6-8hrs","None set µg/m3",null,6.4000000000000001E-2,0.12]
["Comments :"]
[]
[]
[]
[]
["Results of emissions to air that are periodically monitored - oxygen reference 11% "]
["Substance",null,"Ref. Period","Emission Limit Value",null,"Average"]
[null,null,null,null,null,"A1","A2"]
["Hydrogen fluoride",null,"1 hr","1 mg/m3",null,"<0.055","< 0.046"]
["Cd and Tl and their compounds",null,"0.5-8hrs","0.02 mg/m3",null,2.0999999999999999E-3,"< 0.0021"]
["Hg and its compounds",null,"0.5-8hrs","0.02 mg/m3",null,3.3999999999999998E-3,2.8999999999999998E-3]
["Sb, As, Pb, Cr, Co, Cu, Mn, Ni, V and their compounds",null,"0.5-8hrs","0.3 mg/m3",null,4.2999999999999997E-2,2.4E-2]
["Dioxins & Furans (I-TEQ)",null,"6-8hrs","0.06 ng/m3",null,1.7999999999999999E-2,9.1000000000000004E-3]
["PCBs (WHO-TEQ Humans / Mammals)",null,"6-8hrs","None set ng/m3",null,1.1000000000000001E-3,8.4999999999999995E-4]
["PCBs (WHO-TEQ Fish)",null,"6-8hrs","None set ng/m3",null,5.7000000000000003E-5,4.1E-5]
["PCBs (WHO-TEQ Birds)",null,"6-8hrs","None set ng/m3",null,2.8E-3,1.6999999999999999E-3]
["Dioxins & Furans (WHO-TEQ Humans / Mammals)",null,"6-8hrs","None set ng/m3",null,1.7000000000000001E-2,8.0999999999999996E-3]
["Dioxins & Furans (WHO-TEQ Fish)",null,"6-8hrs","None set ng/m3",null,0.02,9.1000000000000004E-3]
["Dioxins & Furans (WHO-TEQ Birds)",null,"6-8hrs","None set ng/m3",null,3.4000000000000002E-2,1.6E-2]
["Comments :"]

{"sheet":"Air (CEMS)","index":13,"n_rows":25,"n_cols":8,"rows_kept":25,"cut":false,"hidden":false,"merged":[[4,0,4,6],[5,0,6,6],[8,0,8,6],[9,0,10,0],[9,2,10,2],[9,1,10,1],[9,3,9,4],[9,5,9,6],[12,7,13,7],[12,8,13,8],[12,9,13,9],[10,7,11,9],[25,0,26,6],[11,0,12,0]]}
[{"$f":"+'Cover Page'!$B$29","v":"Annual Performance Report 2025"}]
[]
["Emissions to Air (continuously monitored)"]
[null,null,null,null,null,null,null,"Notes:"]
["Summary of monitoring undertaken, standards used and compliance",null,null,null,null,null,null,"Template may require adjustment for any bespoke monitoring requirements of permit"]
["Continuous emissions monitoring of Oxides of Nitrogen, Sulphur Dioxide, Hydrogen Chloride, Total Organic Carbon, Particulates, Ammonia and Carbon Monoxide (also Flow, O2, N2O) to EN14181. Instruments used PCME QAL 181, Environement SA MIR FT multigas analyser and Graphite 52M Flame Ionisation Detector (FID). All results demonstrate 100% compliance with the daily emission limit values (except CO due to invalid day on Line A1 and CO due to furnace explosions on Line A2). All results (except particulates due to abnormal operations conditions) demonstrate 100% compliance with 1/2 hour average emission limit values.",null,null,null,null,null,null,"Please check that all default ELV values match those for your plant and edit if necessary!"]
[null,null,null,null,null,null,null,"Report to 1 decimal place"]
[]
["Results of emissions to air that are continuously monitored (maximum and average values for each line) - oxygen reference 11%"]
["Substance","Reference Period","Emission Limit Value","A1",null,"A2"]
[null,null,null,"Max.","Avg.","Max.","Avg."]
["Oxides of nitrogen","Daily mean","180 mg/m3 ",{"$f":"NOx!O17","v":174.32},{"$f":"NOx!N17","v":169.44},{"$f":"NOx!O31","v":175},{"$f":"NOx!N31","v":168.05}]
[null,"½ hourly mean","400 mg/m3 ",{"$f":"NOx!M17","v":200},{"$f":"NOx!L17","v":169},{"$f":"NOx!M31","v":211},{"$f":"NOx!L31","v":168}]
["Particulates","Daily mean","5 mg/m3",{"$f":"Particulates!O17","v":8.83},{"$f":"Particulates!N17","v":1.1200000000000001},{"$f":"Particulates!O31","v":2.67},{"$f":"Particulates!N31","v":0.96}]
[null,"½ hourly mean","30 mg/m3 ",{"$f":"Particulates!M17","v":53},{"$f":"Particulates!L17","v":1},{"$f":"Particulates!M31","v":6},{"$f":"Particulates!L31","v":1}]
["Total Organic Carbon ","Daily mean","10 mg/m3 ",{"$f":"TOC!O17","v":0.14000000000000001},{"$f":"TOC!N17","v":0.06},{"$f":"TOC!O31","v":0.75},{"$f":"TOC!N31","v":0.37}]
[null,"½ hourly mean","20 mg/m3 ",{"$f":"TOC!M17","v":2},{"$f":"TOC!L17","v":0},{"$f":"TOC!M31","v":16},{"$f":"TOC!L31","v":0}]
["Hydrogen chloride ","Daily mean","8 mg/m3 ",{"$f":"HCl!O17","v":6.73},{"$f":"HCl!N17","v":5.57},{"$f":"HCl!O31","v":7.79},{"$f":"HCl!N31","v":5.81}]
[null,"½ hourly mean","60 mg/m3 ",{"$f":"HCl!M17","v":10},{"$f":"HCl!L17","v":6},{"$f":"HCl!M31","v":18},{"$f":"HCl!L31","v":6}]
["Sulphur dioxide","Daily mean","40 mg/m3 ",{"$f":"'SO2'!O17","v":1.31},{"$f":"'SO2'!N17","v":0.19},{"$f":"'SO2'!O31","v":5.34},{"$f":"'SO2'!N31","v":2.39}]
[null,"½ hourly mean","200 mg/m3 ",{"$f":"'SO2'!M17","v":9},{"$f":"'SO2'!L17","v":0},{"$f":"'SO2'!M31","v":23},{"$f":"'SO2'!L31","v":2}]
["Carbon monoxide ","Daily mean","50 mg/m3 ",{"$f":"'CO 95% 10 min'!Q20","v":94.7},{"$f":"'CO 95% 10 min'!P20","v":2.9066666666666667},{"$f":"'CO 95% 10 min'!Q35","v":68.430000000000007},{"$f":"'CO 95% 10 min'!P35","v":6.3150000000000004}]
[null,"95%ile 10-min avg","150 mg/m3",{"$f":"'CO 95% 10 min'!M20","v":14.583333333333334},{"$f":"'CO 95% 10 min'!N20","v":2.5833333333333335},{"$f":"'CO 95% 10 min'!M35","v":43.916666666666664},{"$f":"'CO 95% 10 min'!N35","v":6.5}]
[" Ammonia","Daily mean","15 mg/m3 ",{"$f":"'NH3'!O17","v":0.12},{"$f":"'NH3'!N17","v":0},{"$f":"'NH3'!O31","v":0.37},{"$f":"'NH3'!N31","v":0.09}]
["Comments :"]

{"sheet":"NOx","index":14,"n_rows":48,"n_cols":17,"rows_kept":48,"cut":false,"hidden":false,"merged":[[21,9,33,9],[47,0,47,6],[48,0,51,6],[18,4,18,6],[3,16,7,18],[9,16,11,18],[12,16,15,18],[4,1,4,3],[4,4,4,6],[4,9,4,14],[6,9,18,9]]}
[{"$f":"+'Cover Page'!$B$29","v":"Annual Performance Report 2025"},null,null,null,{"$f":"+'Cover Page'!$B$33","v":"Ferrybridge 2"}]
[]
["Monitoring of Oxides of Nitrogen emissions",null,null,"Whole Installation",null,null,"See  Notes in Cell Q3",null,null,{"$f":"+A3","v":"Monitoring of Oxides of Nitrogen emissions"},null,null,null,"Per Combustion Line",null,null,"Notes:"]
[null,null,null,null,null,null,null,null,null,null,null,null,null,null,null,null,"User to add logic to complete Whole installation, Table A5:G18. From the data in Per Combustion Line, Table J6:O79, subject to No. of lines installed"]
[{"$f":"+'Cover Page'!C39","v":2025},"1/2 Hourly Reference Periods",null,null,"Daily Reference Periods"]
["mg/Nm3","1/2 hourly NOx ELV","Monthly mean of half-hourly averages","Highest half- hourly average","Daily NOx ELV","Monthly mean of  daily averages","Highest daily average",null,null,{"$f":"+A5","v":2025},"mg/Nm3","Monthly mean of half-hourly averages","Highest half- hourly average","Monthly mean of  daily averages","Highest daily average"]
["Jan",400,{"$f":"AVERAGE(L7, L22)","v":166},{"$f":"MAX(M7, M22)","v":207},180,{"$f":"AVERAGE(N7, N22)","v":165.91},{"$f":"MAX(O7, O22)","v":174.92},null,null,"A1","Jan",165,207,164.6,170.53]
["Feb",400,{"$f":"AVERAGE(L8, L23)","v":168.5},{"$f":"MAX(M8, M23)","v":210},180,{"$f":"AVERAGE(N8, N23)","v":168.315},{"$f":"MAX(O8, O23)","v":178.13},null,null,null,"Feb",166,190,166.09,172.55]
["Mar",400,{"$f":"AVERAGE(L9, L24)","v":170.5},202,180,170.31,174.96,null,null,null,"Mar",169,200,168.67,173.06,null,"Whole Installation table A5:G18:"]
["Apr",400,{"$f":"AVERAGE(L10, L25)","v":170.5},211,180,170.625,175.58,null,null,null,"Apr",167,192,166.99,170.78,null,"Mean: for 1/2 hourly and daily periods calculate mean of values across all operational combustion lines for the month"]
["May",400,172,281,180,171.95499999999998,178.34,null,null,null,"May",169,281,168.67,176.82]
["Jun",400,171.5,207,180,171.28500000000003,175.58,null,null,null,"Jun",169,199,168.99,171.52]
["Jul",400,169,217,180,169.10499999999999,175.75,null,null,null,"Jul",169,194,168.98,172.37,null,"Maximum: for 1/2 hourly and daily periods use the highest value across all operational combustion lines for the month"]
["Aug",400,168,211,180,168.17000000000002,173.6,null,null,null,"Aug",169,202,168.84,173.6]
["Sep",400,167.5,211,180,167.52500000000001,175.06,null,null,null,"Sep",172,211,171.74,175.06]
["Oct",400,168,211,180,168.07,175,null,null,null,"Oct",168,209,168.09,171.98]
["Nov",400,170.5,221,180,170.74,175.81,null,null,null,"Nov",169,200,169.44,174.32]
["Dec",400,168,198,180,168.06,175.51,null,null,null,"Dec",170,196,170.45,175.12]
[null,null,null,null,null,null,null,null,null,null,"Annual",{"$f":"AVERAGE(L7:L18)","v":168.5},{"$f":"MAX(M7:M18)","v":281},{"$f":"AVERAGE(N7:N18)","v":168.46250000000001},{"$f":"MAX(O7:O18)","v":176.82}]
[]
[null,null,null,null,null,null,null,null,null,{"$f":"+A5","v":2025},"mg/Nm3","Monthly mean of half-hourly averages","Highest half- hourly average","Monthly mean of  daily averages","Highest daily average"]
[null,null,null,null,null,null,null,null,null,"A2","Jan",167,204,167.22,174.92]
[null,null,null,null,null,null,null,null,null,null,"Feb",171,210,170.54,178.13]
[null,null,null,null,null,null,null,null,null,null,"Mar",172,202,171.95,174.96]
[null,null,null,null,null,null,null,null,null,null,"Apr",174,211,174.26,175.58]
[null,null,null,null,null,null,null,null,null,null,"May",175,211,175.24,178.34]
[null,null,null,null,null,null,null,null,null,null,"Jun",174,207,173.58,175.58]
[null,null,null,null,null,null,null,null,null,null,"Jul",169,217,169.23,175.75]
[null,null,null,null,null,null,null,null,null,null,"Aug",167,211,167.5,173.34]
[null,null,null,null,null,null,null,null,null,null,"Sep",163,200,163.31,173.31]
[null,null,null,null,null,null,null,null,null,null,"Oct",168,211,168.05,175]
[null,null,null,null,null,null,null,null,null,null,"Nov",172,221,172.04,175.81]
[null,null,null,null,null,null,null,null,null,null,"Dec",166,198,165.67,175.51]
[null,null,null,null,null,null,null,null,null,null,"Annual",{"$f":"AVERAGE(L22:L33)","v":169.83333333333334},{"$f":"MAX(M22:M33)","v":221},{"$f":"AVERAGE(N22:N33)","v":169.88249999999999},{"$f":"MAX(O22:O33)","v":178.34}]
[]
[]
[]
[]
[]
[]
[]
[]
[]
[]
[]
[]
[]
["Comments :"]

{"sheet":"SO2","index":15,"n_rows":48,"n_cols":17,"rows_kept":48,"cut":false,"hidden":false,"merged":[[21,9,33,9],[47,0,47,6],[48,0,51,6],[18,4,18,6],[3,16,7,18],[9,16,11,18],[12,16,15,18],[4,1,4,3],[4,4,4,6],[4,9,4,14],[6,9,18,9]]}
[{"$f":"+'Cover Page'!$B$29","v":"Annual Performance Report 2025"},null,null,null,{"$f":"+'Cover Page'!$B$33","v":"Ferrybridge 2"}]
[]
["Monitoring of Sulphur dioxide emissions",null,null,"Whole Installation",null,null,"See  Notes in Cell Q3",null,null,{"$f":"+A3","v":"Monitoring of Sulphur dioxide emissions"},null,null,null,"Per Combustion Line",null,null,"Notes:"]
[null,null,null,null,null,null,null,null,null,null,null,null,null,null,null,null,"User to add logic to complete Whole installation, Table A5:G18. From the data in Per Combustion Line, Table J6:O79, subject to No. of lines installed"]
[{"$f":"+'Cover Page'!C39","v":2025},"1/2 Hourly Reference Periods",null,null,"Daily Reference Periods"]
["mg/Nm3","1/2 hourly SO2 ELV","Monthly mean of half-hourly averages","Highest half- hourly average","Daily SO2 ELV","Monthly mean of  daily averages","Highest daily average",null,null,{"$f":"+A5","v":2025},"mg/Nm3","Monthly mean of half-hourly averages","Highest half- hourly average","Monthly mean of  daily averages","Highest daily average"]
["Jan",200,{"$f":"AVERAGE(L7, L22)","v":0.5},{"$f":"MAX(M7, M22)","v":11},40,{"$f":"AVERAGE(N7, N22)","v":0.36000000000000004},{"$f":"MAX(O7, O22)","v":1.56},null,null,"A1","Jan",1,11,0.67,1.56]
["Feb",200,{"$f":"AVERAGE(L8, L23)","v":0},{"$f":"MAX(M8, M23)","v":17},40,{"$f":"AVERAGE(N8, N23)","v":0.185},{"$f":"MAX(O8, O23)","v":0.66},null,null,null,"Feb",0,14,0.28999999999999998,0.66]
["Mar",200,0,19,40,0.115,0.43,null,null,null,"Mar",0,11,0.17,0.43,null,"Whole Installation table A5:G18:"]
["Apr",200,0,22,40,0.05,0.51,null,null,null,"Apr",0,5,0.03,0.14000000000000001,null,"Mean: for 1/2 hourly and daily periods calculate mean of values across all operational combustion lines for the month"]
["May",200,0,37,40,0.1,1,null,null,null,"May",0,37,0.11,1]
["Jun",200,0,14,40,0.16500000000000001,2.08,null,null,null,"Jun",0,8,0.11,0.51]
["Jul",200,0,7,40,0.19,1.5,null,null,null,"Jul",0,5,0.17,0.62,null,"Maximum: for 1/2 hourly and daily periods use the highest value across all operational combustion lines for the month"]
["Aug",200,0,23,40,0.29500000000000004,2.82,null,null,null,"Aug",0,23,0.2,0.68]
["Sep",200,0.5,74,40,0.875,3.88,null,null,null,"Sep",0,74,0.39,2.23]
["Oct",200,1,23,40,1.36,5.34,null,null,null,"Oct",0,2,0.33,0.93]
["Nov",200,1,19,40,1.2449999999999999,5.07,null,null,null,"Nov",0,9,0.19,1.31]
["Dec",200,0.5,16,40,0.65,2.12,null,null,null,"Dec",0,10,0.1,0.49]
[null,null,null,null,null,null,null,null,null,null,"Annual",{"$f":"AVERAGE(L7:L18)","v":8.3333333333333329E-2},{"$f":"MAX(M7:M18)","v":74},{"$f":"AVERAGE(N7:N18)","v":0.23},{"$f":"MAX(O7:O18)","v":2.23}]
[]
[null,null,null,null,null,null,null,null,null,{"$f":"+A5","v":2025},"mg/Nm3","Monthly mean of half-hourly averages","Highest half- hourly average","Monthly mean of  daily averages","Highest daily average"]
[null,null,null,null,null,null,null,null,null,"A2","Jan",0,11,0.05,0.52]
[null,null,null,null,null,null,null,null,null,null,"Feb",0,17,0.08,0.64]
[null,null,null,null,null,null,null,null,null,null,"Mar",0,19,0.06,0.4]
[null,null,null,null,null,null,null,null,null,null,"Apr",0,22,7.0000000000000007E-2,0.51]
[null,null,null,null,null,null,null,null,null,null,"May",0,30,0.09,0.72]
[null,null,null,null,null,null,null,null,null,null,"Jun",0,14,0.22,2.08]
[null,null,null,null,null,null,null,null,null,null,"Jul",0,7,0.21,1.5]
[null,null,null,null,null,null,null,null,null,null,"Aug",0,20,0.39,2.82]
[null,null,null,null,null,null,null,null,null,null,"Sep",1,30,1.36,3.88]
[null,null,null,null,null,null,null,null,null,null,"Oct",2,23,2.39,5.34]
[null,null,null,null,null,null,null,null,null,null,"Nov",2,19,2.2999999999999998,5.07]
[null,null,null,null,null,null,null,null,null,null,"Dec",1,16,1.2,2.12]
[null,null,null,null,null,null,null,null,null,null,"Annual",{"$f":"AVERAGE(L22:L33)","v":0.5},{"$f":"MAX(M22:M33)","v":30},{"$f":"AVERAGE(N22:N33)","v":0.70166666666666666},{"$f":"MAX(O22:O33)","v":5.34}]
[]
[]
[]
[]
[]
[]
[]
[]
[]
[]
[]
[]
[]
["Comments :"]

{"sheet":"HCl","index":16,"n_rows":48,"n_cols":17,"rows_kept":48,"cut":false,"hidden":false,"merged":[[12,16,15,18],[4,9,4,14],[4,1,4,3],[4,4,4,6],[48,0,51,6],[47,0,47,6],[6,9,18,9],[21,9,33,9],[3,16,7,18],[9,16,11,18],[18,4,18,6]]}
[{"$f":"+'Cover Page'!$B$29","v":"Annual Performance Report 2025"},null,null,null,{"$f":"+'Cover Page'!$B$33","v":"Ferrybridge 2"}]
[]
["Monitoring of Hydrogen Chloride emissions",null,null,"Whole Installation",null,null,"See  Notes in Cell Q3",null,null,{"$f":"+A3","v":"Monitoring of Hydrogen Chloride emissions"},null,null,null,"Per Combustion Line",null,null,"Notes:"]
[null,null,null,null,null,null,null,null,null,null,null,null,null,null,null,null,"User to add logic to complete Whole installation, Table A5:G18. From the data in Per Combustion Line, Table J6:O79, subject to No. of lines installed"]
[{"$f":"+'Cover Page'!C39","v":2025},"1/2 Hourly Reference Periods",null,null,"Daily Reference Periods"]
["mg/Nm3","1/2 hourly HCl ELV","Monthly mean of half-hourly averages","Highest half- hourly average","Daily HCl ELV","Monthly mean of  daily averages","Highest daily average",null,null,{"$f":"+A5","v":2025},"mg/Nm3","Monthly mean of half-hourly averages","Highest half- hourly average","Monthly mean of  daily averages","Highest daily average"]
["Jan",60,{"$f":"AVERAGE(L7, L22)","v":6},{"$f":"MAX(M7, M22)","v":14},8,{"$f":"AVERAGE(N7, N22)","v":6.1749999999999998},{"$f":"MAX(O7, O22)","v":7.51},null,null,"A1","Jan",6,14,5.89,7.01]
["Feb",60,{"$f":"AVERAGE(L8, L23)","v":7},{"$f":"MAX(M8, M23)","v":14},8,{"$f":"AVERAGE(N8, N23)","v":6.82},{"$f":"MAX(O8, O23)","v":7.64},null,null,null,"Feb",7,13,6.65,7.28]
["Mar",60,6.5,12,8,6.3900000000000006,7.53,null,null,null,"Mar",6,11,6.12,7.39,null,"Whole Installation table A5:G18:"]
["Apr",60,6.5,12,8,6.1150000000000002,7.43,null,null,null,"Apr",6,9,5.52,6.23,null,"Mean: for 1/2 hourly and daily periods calculate mean of values across all operational combustion lines for the month"]
["May",60,6,24,8,6.21,7.67,null,null,null,"May",5,24,5.29,6]
["Jun",60,6,12,8,5.9249999999999998,7.6,null,null,null,"Jun",6,11,5.54,7.39]
["Jul",60,6,11,8,5.74,7.55,null,null,null,"Jul",6,10,5.82,7.55,null,"Maximum: for 1/2 hourly and daily periods use the highest value across all operational combustion lines for the month"]
["Aug",60,6,17,8,5.8,7.41,null,null,null,"Aug",6,17,5.64,6.37]
["Sep",60,7,72,8,6.6349999999999998,9.6300000000000008,null,null,null,"Sep",7,72,6.65,9.6300000000000008]
["Oct",60,6,18,8,5.84,7.79,null,null,null,"Oct",6,10,5.87,7.59]
["Nov",60,6,12,8,5.5950000000000006,7.14,null,null,null,"Nov",6,10,5.57,6.73]
["Dec",60,6,11,8,5.83,7.33,null,null,null,"Dec",6,10,6.02,7.1]
[null,null,null,null,null,null,null,null,null,null,"Annual",{"$f":"AVERAGE(L7:L18)","v":6.083333333333333},{"$f":"MAX(M7:M18)","v":72},{"$f":"AVERAGE(N7:N18)","v":5.8816666666666668},{"$f":"MAX(O7:O18)","v":9.6300000000000008}]
[]
[null,null,null,null,null,null,null,null,null,{"$f":"+A5","v":2025},"mg/Nm3","Monthly mean of half-hourly averages","Highest half- hourly average","Monthly mean of  daily averages","Highest daily average"]
[null,null,null,null,null,null,null,null,null,"A2","Jan",6,12,6.46,7.51]
[null,null,null,null,null,null,null,null,null,null,"Feb",7,14,6.99,7.64]
[null,null,null,null,null,null,null,null,null,null,"Mar",7,12,6.66,7.53]
[null,null,null,null,null,null,null,null,null,null,"Apr",7,12,6.71,7.43]
[null,null,null,null,null,null,null,null,null,null,"May",7,20,7.13,7.67]
[null,null,null,null,null,null,null,null,null,null,"Jun",6,12,6.31,7.6]
[null,null,null,null,null,null,null,null,null,null,"Jul",6,11,5.66,7.23]
[null,null,null,null,null,null,null,null,null,null,"Aug",6,15,5.96,7.41]
[null,null,null,null,null,null,null,null,null,null,"Sep",7,28,6.62,9.11]
[null,null,null,null,null,null,null,null,null,null,"Oct",6,18,5.81,7.79]
[null,null,null,null,null,null,null,null,null,null,"Nov",6,12,5.62,7.14]
[null,null,null,null,null,null,null,null,null,null,"Dec",6,11,5.64,7.33]
[null,null,null,null,null,null,null,null,null,null,"Annual",{"$f":"AVERAGE(L22:L33)","v":6.416666666666667},{"$f":"MAX(M22:M33)","v":28},{"$f":"AVERAGE(N22:N33)","v":6.2975000000000003},{"$f":"MAX(O22:O33)","v":9.11}]
[]
[]
[]
[]
[]
[]
[]
[]
[]
[]
[]
[]
[]
["Comments :"]

{"sheet":"TOC","index":17,"n_rows":48,"n_cols":17,"rows_kept":48,"cut":false,"hidden":false,"merged":[[21,9,33,9],[47,0,47,6],[48,0,51,6],[3,16,7,18],[9,16,11,18],[12,16,15,18],[4,1,4,3],[4,4,4,6],[4,9,4,14],[6,9,18,9]]}
[{"$f":"+'Cover Page'!$B$29","v":"Annual Performance Report 2025"},null,null,null,{"$f":"+'Cover Page'!$B$33","v":"Ferrybridge 2"}]
[]
["Monitoring of Total organic carbon emissions",null,null,"Whole Installation",null,null,"See  Notes in Cell Q3",null,null,{"$f":"+A3","v":"Monitoring of Total organic carbon emissions"},null,null,null,"Per Combustion Line",null,null,"Notes:"]
[null,null,null,null,null,null,null,null,null,null,null,null,null,null,null,null,"User to add logic to complete Whole installation, Table A5:G18. From the data in Per Combustion Line, Table J6:O79, subject to No. of lines installed"]
[{"$f":"+'Cover Page'!C39","v":2025},"1/2 Hourly Reference Periods",null,null,"Daily Reference Periods"]
["mg/Nm3","1/2 hourly TOC ELV","Monthly mean of half-hourly averages","Highest half- hourly average","Daily TOC ELV","Monthly mean of  daily averages","Highest daily average",null,null,{"$f":"+A5","v":2025},"mg/Nm3","Monthly mean of half-hourly averages","Highest half- hourly average","Monthly mean of  daily averages","Highest daily average"]
["Jan",20,{"$f":"AVERAGE(L7, L22)","v":0},{"$f":"MAX(M7, M22)","v":8},10,{"$f":"AVERAGE(N7, N22)","v":6.5000000000000002E-2},{"$f":"MAX(O7, O22)","v":0.24},null,null,"A1","Jan",0,3,0.05,0.24]
["Feb",20,{"$f":"AVERAGE(L8, L23)","v":0},{"$f":"MAX(M8, M23)","v":6},10,{"$f":"AVERAGE(N8, N23)","v":0.1},{"$f":"MAX(O8, O23)","v":0.26},null,null,null,"Feb",0,2,0.13,0.26]
["Mar",20,0,4,10,0.13,0.35,null,null,null,"Mar",0,2,0.12,0.23,null,"Whole Installation table A5:G18:"]
["Apr",20,0,3,10,0.11,0.39,null,null,null,"Apr",0,2,0.02,0.09,null,"Mean: for 1/2 hourly and daily periods calculate mean of values across all operational combustion lines for the month"]
["May",20,0,9,10,0.125,0.55000000000000004,null,null,null,"May",0,9,0.05,0.55000000000000004]
["Jun",20,0,12,10,0.22500000000000001,1.82,null,null,null,"Jun",0,3,0.13,1.82]
["Jul",20,0.5,10,10,0.28000000000000003,0.62,null,null,null,"Jul",0,3,0.05,0.17,null,"Maximum: for 1/2 hourly and daily periods use the highest value across all operational combustion lines for the month"]
["Aug",20,0,5,10,0.27999999999999997,0.68,null,null,null,"Aug",0,3,0.09,0.55000000000000004]
["Sep",20,0,10,10,0.215,0.55000000000000004,null,null,null,"Sep",0,3,0.04,0.28999999999999998]
["Oct",20,0,16,10,0.22500000000000001,0.75,null,null,null,"Oct",0,2,0.08,0.55000000000000004]
["Nov",20,0,12,10,0.18,0.68,null,null,null,"Nov",0,2,0.06,0.14000000000000001]
["Dec",20,0,11,10,0.185,0.55000000000000004,null,null,null,"Dec",0,3,7.0000000000000007E-2,0.27]
[null,null,null,null,null,null,null,null,null,null,"Annual",{"$f":"AVERAGE(L7:L18)","v":0},{"$f":"MAX(M7:M18)","v":9},{"$f":"AVERAGE(N7:N18)","v":7.4166666666666672E-2},{"$f":"MAX(O7:O18)","v":1.82}]
[]
[null,null,null,null,null,null,null,null,null,{"$f":"+A5","v":2025},"mg/Nm3","Monthly mean of half-hourly averages","Highest half- hourly average","Monthly mean of  daily averages","Highest daily average"]
[null,null,null,null,null,null,null,null,null,"A2","Jan",0,8,0.08,0.22]
[null,null,null,null,null,null,null,null,null,null,"Feb",0,6,7.0000000000000007E-2,0.19]
[null,null,null,null,null,null,null,null,null,null,"Mar",0,4,0.14000000000000001,0.35]
[null,null,null,null,null,null,null,null,null,null,"Apr",0,3,0.2,0.39]
[null,null,null,null,null,null,null,null,null,null,"May",0,7,0.2,0.3]
[null,null,null,null,null,null,null,null,null,null,"Jun",0,12,0.32,0.56999999999999995]
[null,null,null,null,null,null,null,null,null,null,"Jul",1,10,0.51,0.62]
[null,null,null,null,null,null,null,null,null,null,"Aug",0,5,0.47,0.68]
[null,null,null,null,null,null,null,null,null,null,"Sep",0,10,0.39,0.55000000000000004]
[null,null,null,null,null,null,null,null,null,null,"Oct",0,16,0.37,0.75]
[null,null,null,null,null,null,null,null,null,null,"Nov",0,12,0.3,0.68]
[null,null,null,null,null,null,null,null,null,null,"Dec",0,11,0.3,0.55000000000000004]
[null,null,null,null,null,null,null,null,null,null,"Annual",{"$f":"AVERAGE(L22:L33)","v":8.3333333333333329E-2},{"$f":"MAX(M22:M33)","v":16},{"$f":"AVERAGE(N22:N33)","v":0.27916666666666662},{"$f":"MAX(O22:O33)","v":0.75}]
[]
[]
[]
[]
[]
[]
[]
[]
[]
[]
[]
[]
[]
["Comments :"]

{"sheet":"Particulates","index":18,"n_rows":48,"n_cols":17,"rows_kept":48,"cut":false,"hidden":false,"merged":[[21,9,33,9],[47,0,47,6],[48,0,51,6],[18,4,18,6],[4,16,8,18],[10,16,12,18],[13,16,16,18],[4,1,4,3],[4,4,4,6],[4,9,4,14],[6,9,18,9]]}
[{"$f":"+'Cover Page'!$B$29","v":"Annual Performance Report 2025"},null,null,null,{"$f":"+'Cover Page'!$B$33","v":"Ferrybridge 2"}]
[]
["Monitoring of Particulate matter emissions",null,null,"Whole Installation",null,null,"See  Notes in Cell Q3",null,null,{"$f":"+A3","v":"Monitoring of Particulate matter emissions"},null,null,null,"Per Combustion Line",null,null,"Notes:"]
[]
[{"$f":"+'Cover Page'!C39","v":2025},"1/2 Hourly Reference Periods",null,null,"Daily Reference Periods",null,null,null,null,null,null,null,null,null,null,null,"User to add logic to complete Whole installation, Table A5:G18. From the data in Per Combustion Line, Table J6:O79, subject to No. of lines installed"]
["mg/Nm3","1/2 hourly PM ELV","Monthly mean of half-hourly averages","Highest half- hourly average","Daily PM ELV","Monthly mean of  daily averages","Highest daily average",null,null,{"$f":"+A5","v":2025},"mg/Nm3","Monthly mean of half-hourly averages","Highest half- hourly average","Monthly mean of  daily averages","Highest daily average"]
["Jan",30,{"$f":"AVERAGE(L7, L22)","v":1},{"$f":"MAX(M7, M22)","v":2},5,{"$f":"AVERAGE(N7, N22)","v":0.61},{"$f":"MAX(O7, O22)","v":1.08},null,null,"A1","Jan",1,2,0.71,1.08]
["Feb",30,{"$f":"AVERAGE(L8, L23)","v":1},{"$f":"MAX(M8, M23)","v":2},5,{"$f":"AVERAGE(N8, N23)","v":0.61},{"$f":"MAX(O8, O23)","v":0.82},null,null,null,"Feb",1,1,0.63,0.71]
["Mar",30,1,2,5,0.64500000000000002,0.94,null,null,null,"Mar",1,1,0.66,0.7]
["Apr",30,1,4,5,0.63,1.0900000000000001,null,null,null,"Apr",1,1,0.66,0.76,null,"Whole Installation table A5:G18:"]
["May",30,1,56,5,0.76,2.12,null,null,null,"May",1,56,0.71,1.93,null,"Mean: for 1/2 hourly and daily periods calculate mean of values across all operational combustion lines for the month"]
["Jun",30,1,2,5,0.65,1.1200000000000001,null,null,null,"Jun",1,2,0.66,1.1200000000000001]
["Jul",30,1,3,5,0.61499999999999999,0.99,null,null,null,"Jul",1,3,0.62,0.86]
["Aug",30,1,2,5,0.75499999999999989,1.75,null,null,null,"Aug",1,2,0.82,1.75,null,"Maximum: for 1/2 hourly and daily periods use the highest value across all operational combustion lines for the month"]
["Sep",30,1,106,5,0.92999999999999994,3.96,null,null,null,"Sep",1,3,0.89,2.27]
["Oct",30,1,6,5,0.84,2.67,null,null,null,"Oct",1,2,0.72,1.1499999999999999]
["Nov",30,1,53,5,0.93,8.83,null,null,null,"Nov",1,53,1.1200000000000001,8.83]
["Dec",30,1,33,5,0.86,2.69,null,null,null,"Dec",1,3,0.9,1.55]
[null,null,null,null,null,null,null,null,null,null,"Annual",{"$f":"AVERAGE(L7:L18)","v":1},{"$f":"MAX(M7:M18)","v":56},{"$f":"AVERAGE(N7:N18)","v":0.7583333333333333},{"$f":"MAX(O7:O18)","v":8.83}]
[]
[null,null,null,null,null,null,null,null,null,{"$f":"+A5","v":2025},"mg/Nm3","Monthly mean of half-hourly averages","Highest half- hourly average","Monthly mean of  daily averages","Highest daily average"]
[null,null,null,null,null,null,null,null,null,"A2","Jan",1,2,0.51,0.79]
[null,null,null,null,null,null,null,null,null,null,"Feb",1,2,0.59,0.82]
[null,null,null,null,null,null,null,null,null,null,"Mar",1,2,0.63,0.94]
[null,null,null,null,null,null,null,null,null,null,"Apr",1,4,0.6,1.0900000000000001]
[null,null,null,null,null,null,null,null,null,null,"May",1,50,0.81,2.12]
[null,null,null,null,null,null,null,null,null,null,"Jun",1,2,0.64,0.89]
[null,null,null,null,null,null,null,null,null,null,"Jul",1,2,0.61,0.99]
[null,null,null,null,null,null,null,null,null,null,"Aug",1,2,0.69,1]
[null,null,null,null,null,null,null,null,null,null,"Sep",1,106,0.97,3.96]
[null,null,null,null,null,null,null,null,null,null,"Oct",1,6,0.96,2.67]
[null,null,null,null,null,null,null,null,null,null,"Nov",1,5,0.74,1.31]
[null,null,null,null,null,null,null,null,null,null,"Dec",1,33,0.82,2.69]
[null,null,null,null,null,null,null,null,null,null,"Annual",{"$f":"AVERAGE(L22:L33)","v":1},{"$f":"MAX(M22:M33)","v":106},{"$f":"AVERAGE(N22:N33)","v":0.71416666666666673},{"$f":"MAX(O22:O33)","v":3.96}]
[]
[]
[]
[]
[]
[]
[]
[]
[]
[]
[]
[]
[]
["Comments :"]

{"sheet":"NH3","index":19,"n_rows":49,"n_cols":17,"rows_kept":49,"cut":false,"hidden":false,"merged":[[21,9,33,9],[47,0,47,6],[48,0,51,6],[18,4,18,6],[3,16,7,18],[9,16,11,18],[12,16,15,18],[4,1,4,3],[4,4,4,6],[4,9,4,14],[6,9,18,9]]}
[{"$f":"+'Cover Page'!$B$29","v":"Annual Performance Report 2025"},null,null,null,{"$f":"+'Cover Page'!$B$33","v":"Ferrybridge 2"}]
[]
["Monitoring of Ammnonia emissions ",null,null,"Whole Installation",null,null,"See  Notes in Cell Q3",null,null,{"$f":"+A3","v":"Monitoring of Ammnonia emissions "},null,null,null,"Per Combustion Line",null,null,"Notes:"]
[null,null,null,null,null,null,null,null,null,null,null,null,null,null,null,null,"User to add logic to complete Whole installation, Table A5:G18. From the data in Per Combustion Line, Table J6:O79, subject to No. of lines installed"]
[{"$f":"+'Cover Page'!C39","v":2025},"1/2 Hourly Reference Periods",null,null,"Daily Reference Periods"]
["mg/Nm3","1/2 hourly NH3 ELV","Monthly mean of half-hourly averages","Highest half- hourly average","Daily NH3 ELV","Monthly mean of  daily averages","Highest daily average",null,null,{"$f":"+A5","v":2025},"mg/Nm3","Monthly mean of half-hourly averages","Highest half- hourly average","Monthly mean of  daily averages","Highest daily average"]
["Jan","None",{"$f":"AVERAGE(L7, L22)","v":0},{"$f":"MAX(M7, M22)","v":1},15,{"$f":"AVERAGE(N7, N22)","v":5.5E-2},{"$f":"MAX(O7, O22)","v":0.25},null,null,"A1","Jan",0,1,0.02,0.13]
["Feb",{"$f":"+B7","v":"None"},{"$f":"AVERAGE(L8, L23)","v":0},{"$f":"MAX(M8, M23)","v":1},15,{"$f":"AVERAGE(N8, N23)","v":3.5000000000000003E-2},{"$f":"MAX(O8, O23)","v":0.16},null,null,null,"Feb",0,0,0,0]
["Mar",{"$f":"+B8","v":"None"},0,1,15,0.02,7.0000000000000007E-2,null,null,null,"Mar",0,0,0,0.01,null,"Whole Installation table A5:G18:"]
["Apr","None",0,1,15,0.01,0.06,null,null,null,"Apr",0,0,0,0.03,null,"Mean: for 1/2 hourly and daily periods calculate mean of values across all operational combustion lines for the month"]
["May","None",0,1,15,0.01,0.26,null,null,null,"May",0,0,0,0.09]
["Jun","None",0,1,15,2.5000000000000001E-2,0.13,null,null,null,"Jun",0,1,0,0.1]
["Jul","None",0,0,15,0.02,0.11,null,null,null,"Jul",0,0,0,0.05,null,"Maximum: for 1/2 hourly and daily periods use the highest value across all operational combustion lines for the month"]
["Aug","None",0,2,15,0.04,0.19,null,null,null,"Aug",0,0,0,0.02]
["Sep","None",0,1,15,2.5000000000000001E-2,0.22,null,null,null,"Sep",0,0,0,0.03]
["Oct","None",0,1,15,4.9999999999999996E-2,0.37,null,null,null,"Oct",0,1,0.01,0.14000000000000001]
["Nov","None",0,1,15,1.4999999999999999E-2,0.12,null,null,null,"Nov",0,1,0,0.12]
["Dec","None",0,0,15,1.4999999999999999E-2,0.08,null,null,null,"Dec",0,0,0,0.02]
[null,null,null,null,null,null,null,null,null,null,"Annual",{"$f":"AVERAGE(L7:L18)","v":0},{"$f":"MAX(M7:M18)","v":1},{"$f":"AVERAGE(N7:N18)","v":2.5000000000000001E-3},{"$f":"MAX(O7:O18)","v":0.14000000000000001}]
[]
[null,null,null,null,null,null,null,null,null,{"$f":"+A5","v":2025},"mg/Nm3","Monthly mean of half-hourly averages","Highest half- hourly average","Monthly mean of  daily averages","Highest daily average"]
[null,null,null,null,null,null,null,null,null,"A2","Jan",0,1,0.09,0.25]
[null,null,null,null,null,null,null,null,null,null,"Feb",0,1,7.0000000000000007E-2,0.16]
[null,null,null,null,null,null,null,null,null,null,"Mar",0,1,0.04,7.0000000000000007E-2]
[null,null,null,null,null,null,null,null,null,null,"Apr",0,1,0.02,0.06]
[null,null,null,null,null,null,null,null,null,null,"May",0,1,0.02,0.26]
[null,null,null,null,null,null,null,null,null,null,"Jun",0,1,0.05,0.13]
[null,null,null,null,null,null,null,null,null,null,"Jul",0,0,0.04,0.11]
[null,null,null,null,null,null,null,null,null,null,"Aug",0,2,0.08,0.19]
[null,null,null,null,null,null,null,null,null,null,"Sep",0,1,0.05,0.22]
[null,null,null,null,null,null,null,null,null,null,"Oct",0,1,0.09,0.37]
[null,null,null,null,null,null,null,null,null,null,"Nov",0,0,0.03,0.08]
[null,null,null,null,null,null,null,null,null,null,"Dec",0,0,0.03,0.08]
[null,null,null,null,null,null,null,null,null,null,"Annual",{"$f":"AVERAGE(L22:L33)","v":0},{"$f":"MAX(M22:M33)","v":2},{"$f":"AVERAGE(N22:N33)","v":5.0833333333333335E-2},{"$f":"MAX(O22:O33)","v":0.37}]
[]
[]
[]
[]
[]
[]
[]
[]
[]
[]
[]
[]
[]
["Comments :"]
["An indicated ELV value of zero in the table above means that no ammonia limit is/was set in the permit.  "]

{"sheet":"CO 95% 10 min","index":20,"n_rows":50,"n_cols":19,"rows_kept":50,"cut":false,"hidden":false,"merged":[[22,10,34,10],[48,0,48,7],[49,0,52,7],[4,18,8,20],[10,18,12,20],[13,18,16,20],[5,1,5,4],[5,5,5,7],[5,10,5,16],[7,10,19,10]]}
[{"$f":"+'Cover Page'!$B$29","v":"Annual Performance Report 2025"},null,null,null,{"$f":"+'Cover Page'!$B$33","v":"Ferrybridge 2"}]
[]
["Monitoring of Carbon Monoxide (10-minute avg)",null,null,null,"Whole Installation",null,null,"See  Notes in Cell S3",null,{"$f":"+A3","v":"Monitoring of Carbon Monoxide (10-minute avg)"},null,null,null,null,"Per Combustion Line",null,"Notes:",null,"Notes:"]
[]
[null,null,null,null,null,null,null,null,null,null,null,null,null,null,null,null,null,null,"User to add logic to complete Whole installation, Table A5:H18. From the data in Per Combustion Line, Table K6:Q79, subject to No. of lines installed"]
[{"$f":"+'Cover Page'!C39","v":2025},"10-minute Reference Periods",null,null,null,"Daily Reference Periods"]
["mg/Nm3","95%ile 10-min avg CO ELV","Highest daily 95%ile 10-min average","Monthly mean of 10-min averages","Highest 10-min average","Daily CO ELV","Monthly mean of  daily averages","Highest daily average",null,null,{"$f":"+A6","v":2025},"mg/Nm3","Highest daily 95%ile 10-min average","Monthly mean of 10-min averages","Highest 10-min average","Monthly mean of  daily averages","Highest daily average"]
["Jan",150,{"$f":"MAX(M5, M23)","v":25},{"$f":"AVERAGE(N5, N23)","v":2},{"$f":"MAX(O5, O23)","v":2112},50,{"$f":"AVERAGE(P5, P23)","v":2.41},{"$f":"MAX(Q5, Q23)","v":17.100000000000001},null,null,"A1","Jan",25,4,332,3.68,8.9499999999999993]
["Feb",{"$f":"+B8","v":150},{"$f":"MAX(M6, M24)","v":12},{"$f":"AVERAGE(N6, N24)","v":3},{"$f":"MAX(O6, O24)","v":5044},{"$f":"+F8","v":50},{"$f":"AVERAGE(P6, P24)","v":3.1},{"$f":"MAX(Q6, Q24)","v":35.28},null,null,null,"Feb",10,3,403,3.09,5.96]
["Mar",{"$f":"+B9","v":150},17,2,201,{"$f":"+F9","v":50},2.27,5.33,null,null,null,"Mar",9,3,376,2.78,6.48,null,"Whole Installation table A5:H18:"]
["Apr",150,25,3.5,332,50,3.4050000000000002,8.9499999999999993,null,null,null,"Apr",13,2,399,2.4300000000000002,6.02,null,"Mean: for 10-min and daily periods use average of all operational combustion lines."]
["May",150,10,4,3979,50,3.7949999999999999,27.05,null,null,null,"May",15,3,464,2.98,7.97]
["Jun",150,11,4,2835,50,3.92,22.01,null,null,null,"Jun",12,2,667,5.73,94.7]
["Jul",150,85,5.5,3186,50,5.72,27.46,null,null,null,"Jul",30,3,388,2.6,8.89,null,"Maximum: for 10-min and daily periods use the highest of all operational combustion lines in any month."]
["Aug",150,94,6.5,486,50,6.415,22.8,null,null,null,"Aug",16,3,577,3.14,8.3000000000000007]
["Sep",150,72,5,2903,50,6.8350000000000009,94.7,null,null,null,"Sep",14,2,455,2.29,5.49]
["Oct",150,127,9,6210,50,7.8650000000000002,66.400000000000006,null,null,null,"Oct",9,2,247,1.82,4.03]
["Nov",150,16,5.5,6347,50,5.3550000000000004,68.430000000000007,null,null,null,"Nov",12,2,359,1.89,8.73]
["Dec",150,51,5,3178,50,5.05,30.72,null,null,null,"Dec",10,2,315,2.4500000000000002,5.32]
[null,null,null,null,null,null,null,null,null,null,null,"Annual",{"$f":"AVERAGE(M8:M19)","v":14.583333333333334},{"$f":"AVERAGE(N8:N19)","v":2.5833333333333335},{"$f":"MAX(O8:O19)","v":667},{"$f":"AVERAGE(P8:P19)","v":2.9066666666666667},{"$f":"MAX(Q8:Q19)","v":94.7}]
[]
[null,null,null,null,null,null,null,null,null,null,{"$f":"+A6","v":2025},"mg/Nm3","Highest daily 95%ile 10-min average","Monthly mean of 10-min averages","Highest 10-min average","Monthly mean of  daily averages","Highest daily average"]
[null,null,null,null,null,null,null,null,null,null,"A2","Jan",25,2,2112,2.41,17.100000000000001]
[null,null,null,null,null,null,null,null,null,null,null,"Feb",12,3,5044,3.1,35.28]
[null,null,null,null,null,null,null,null,null,null,null,"Mar",17,2,201,2.27,5.33]
[null,null,null,null,null,null,null,null,null,null,null,"Apr",13,3,306,3.13,6.45]
[null,null,null,null,null,null,null,null,null,null,null,"May",9,5,3979,4.5,27.05]
[null,null,null,null,null,null,null,null,null,null,null,"Jun",11,5,2835,5.0599999999999996,22.01]
[null,null,null,null,null,null,null,null,null,null,null,"Jul",85,9,3186,9.01,27.46]
[null,null,null,null,null,null,null,null,null,null,null,"Aug",94,10,486,9.85,22.8]
[null,null,null,null,null,null,null,null,null,null,null,"Sep",72,8,2903,7.94,23.1]
[null,null,null,null,null,null,null,null,null,null,null,"Oct",127,15,6210,13.13,66.400000000000006]
[null,null,null,null,null,null,null,null,null,null,null,"Nov",11,8,6347,7.57,68.430000000000007]
[null,null,null,null,null,null,null,null,null,null,null,"Dec",51,8,3178,7.81,30.72]
[null,null,null,null,null,null,null,null,null,null,null,"Annual",{"$f":"AVERAGE(M23:M34)","v":43.916666666666664},{"$f":"AVERAGE(N23:N34)","v":6.5},{"$f":"MAX(O23:O34)","v":6347},{"$f":"AVERAGE(P23:P34)","v":6.3150000000000004},{"$f":"MAX(Q23:Q34)","v":68.430000000000007}]
[]
[]
[]
[]
[]
[]
[]
[]
[]
[]
[]
[]
[]
["Comments :"]
["Environment Agency explanatory note: The 10-minute average ELV is based on the “95th percentile”. In this case this means that 95% of the 10 minute averages in the relevant 24-hour period (i.e. 137) must be below 150 mg/Nm3, and 5% (i.e. 7) are allowed to be any value above 150 mg/Nm3. Whilst we expect operators to minimise CO emissions at all times, it is perfectly acceptable for the value of the maximum 10-minute average to be above 150 mg/Nm3, provided the 95th percentile ELV has been met for that period. "]

{"sheet":"CO 0.5 hourly","index":21,"n_rows":82,"n_cols":17,"rows_kept":82,"cut":false,"hidden":false,"merged":[[4,0,5,6],[6,16,10,18],[12,16,14,18],[15,16,18,18],[69,9,81,9],[7,1,7,3],[7,4,7,6],[7,9,7,14],[9,9,21,9],[24,9,36,9],[39,9,51,9],[50,0,50,6],[51,0,54,6],[54,9,66,9]]}
[{"$f":"+'Cover Page'!$B$29","v":"Annual Performance Report 2025"},null,null,null,{"$f":"+'Cover Page'!$B$33","v":"Ferrybridge 2"}]
[]
["Monitoring of Carbon Monoxide (half hourly)",null,null,"Whole Installation",null,null,"See  Notes in Cell Q3",null,null,{"$f":"+A3","v":"Monitoring of Carbon Monoxide (half hourly)"},null,null,null,"Per Combustion Line",null,null,"Notes:"]
[]
["Please complete this tab for your plant if you have 1/2 hourly CO ELVs; otherwise, leave it blank and complete the CO 95% 10 min tab"]
[]
[null,null,null,null,null,null,null,null,null,null,null,null,null,null,null,null,"User to add logic to complete Whole installation, Table A5:G18. From the data in Per Combustion Line, Table J6:O79, subject to No. of lines installed"]
[{"$f":"+'Cover Page'!C39","v":2025},"1/2 Hourly Reference Periods",null,null,"Daily Reference Periods"]
["mg/Nm3","1/2 hourly CO ELV","Monthly mean of half-hourly averages","Highest half- hourly average","Daily CO ELV","Monthly mean of  daily averages","Highest daily average",null,null,{"$f":"+A8","v":2025},"mg/Nm3","Monthly mean of half-hourly averages","Highest half- hourly average","Monthly mean of  daily averages","Highest daily average"]
["Jan",100,null,null,50,null,null,null,null,"A1","Jan"]
["Feb",{"$f":"+B10","v":100},null,null,{"$f":"+E10","v":50},null,null,null,null,null,"Feb"]
["Mar",{"$f":"+B11","v":100},null,null,{"$f":"+E11","v":50},null,null,null,null,null,"Mar",null,null,null,null,null,"Whole Installation table A5:G18:"]
["Apr",100,null,null,50,null,null,null,null,null,"Apr",null,null,null,null,null,"Mean: for 1/2 hourly and daily periods calculate mean of values across all operational combustion lines for the month"]
["May",100,null,null,50,null,null,null,null,null,"May"]
["Jun",100,null,null,50,null,null,null,null,null,"Jun"]
["Jul",100,null,null,50,null,null,null,null,null,"Jul",null,null,null,null,null,"Maximum: for 1/2 hourly and daily periods use the highest value across all operational combustion lines for the month"]
["Aug",100,null,null,50,null,null,null,null,null,"Aug"]
["Sep",100,null,null,50,null,null,null,null,null,"Sep"]
["Oct",100,null,null,50,null,null,null,null,null,"Oct"]
["Nov",100,null,null,50,null,null,null,null,null,"Nov"]
["Dec",100,null,null,50,null,null,null,null,null,"Dec"]
[null,null,null,null,null,null,null,null,null,null,"Annual",{"$f":"AVERAGE(L10:L21)","v":{"$error":"#DIV/0!"}},{"$f":"MAX(M10:M21)","v":0},{"$f":"AVERAGE(N10:N21)","v":{"$error":"#DIV/0!"}},{"$f":"MAX(O10:O21)","v":0}]
[]
[null,null,null,null,null,null,null,null,null,{"$f":"+A8","v":2025},"mg/Nm3","Monthly mean of half-hourly averages","Highest half- hourly average","Monthly mean of  daily averages","Highest daily average"]
[null,null,null,null,null,null,null,null,null,"A2","Jan"]
[null,null,null,null,null,null,null,null,null,null,"Feb"]
[null,null,null,null,null,null,null,null,null,null,"Mar"]
[null,null,null,null,null,null,null,null,null,null,"Apr"]
[null,null,null,null,null,null,null,null,null,null,"May"]
[null,null,null,null,null,null,null,null,null,null,"Jun"]
[null,null,null,null,null,null,null,null,null,null,"Jul"]
[null,null,null,null,null,null,null,null,null,null,"Aug"]
[null,null,null,null,null,null,null,null,null,null,"Sep"]
[null,null,null,null,null,null,null,null,null,null,"Oct"]
[null,null,null,null,null,null,null,null,null,null,"Nov"]
[null,null,null,null,null,null,null,null,null,null,"Dec"]
[null,null,null,null,null,null,null,null,null,null,"Annual",{"$f":"AVERAGE(L25:L36)","v":{"$error":"#DIV/0!"}},{"$f":"MAX(M25:M36)","v":0},{"$f":"AVERAGE(N25:N36)","v":{"$error":"#DIV/0!"}},{"$f":"MAX(O25:O36)","v":0}]
[]
[null,null,null,null,null,null,null,null,null,{"$f":"+A8","v":2025},"mg/Nm3","Monthly mean of half-hourly averages","Highest half- hourly average","Monthly mean of  daily averages","Highest daily average"]
[null,null,null,null,null,null,null,null,null,"A3","Jan"]
[null,null,null,null,null,null,null,null,null,null,"Feb"]
[null,null,null,null,null,null,null,null,null,null,"Mar"]
[null,null,null,null,null,null,null,null,null,null,"Apr"]
[null,null,null,null,null,null,null,null,null,null,"May"]
[null,null,null,null,null,null,null,null,null,null,"Jun"]
[null,null,null,null,null,null,null,null,null,null,"Jul"]
[null,null,null,null,null,null,null,null,null,null,"Aug"]
[null,null,null,null,null,null,null,null,null,null,"Sep"]
[null,null,null,null,null,null,null,null,null,null,"Oct"]
[null,null,null,null,null,null,null,null,null,null,"Nov"]
["Comments :",null,null,null,null,null,null,null,null,null,"Dec"]
[null,null,null,null,null,null,null,null,null,null,"Annual",{"$f":"AVERAGE(L40:L51)","v":{"$error":"#DIV/0!"}},{"$f":"MAX(M40:M51)","v":0},{"$f":"AVERAGE(N40:N51)","v":{"$error":"#DIV/0!"}},{"$f":"MAX(O40:O51)","v":0}]
[]
[null,null,null,null,null,null,null,null,null,{"$f":"+A8","v":2025},"mg/Nm3","Monthly mean of half-hourly averages","Highest half- hourly average","Monthly mean of  daily averages","Highest daily average"]
[null,null,null,null,null,null,null,null,null,"A4","Jan"]
[null,null,null,null,null,null,null,null,null,null,"Feb"]
[null,null,null,null,null,null,null,null,null,null,"Mar"]
[null,null,null,null,null,null,null,null,null,null,"Apr"]
[null,null,null,null,null,null,null,null,null,null,"May"]
[null,null,null,null,null,null,null,null,null,null,"Jun"]
[null,null,null,null,null,null,null,null,null,null,"Jul"]
[null,null,null,null,null,null,null,null,null,null,"Aug"]
[null,null,null,null,null,null,null,null,null,null,"Sep"]
[null,null,null,null,null,null,null,null,null,null,"Oct"]
[null,null,null,null,null,null,null,null,null,null,"Nov"]
[null,null,null,null,null,null,null,null,null,null,"Dec"]
[null,null,null,null,null,null,null,null,null,null,"Annual",{"$f":"AVERAGE(L55:L66)","v":{"$error":"#DIV/0!"}},{"$f":"MAX(M55:M66)","v":0},{"$f":"AVERAGE(N55:N66)","v":{"$error":"#DIV/0!"}},{"$f":"MAX(O55:O66)","v":0}]
[]
[null,null,null,null,null,null,null,null,null,{"$f":"+A8","v":2025},"mg/Nm3","Monthly mean of half-hourly averages","Highest half- hourly average","Monthly mean of  daily averages","Highest daily average"]
[null,null,null,null,null,null,null,null,null,"A5","Jan"]
[null,null,null,null,null,null,null,null,null,null,"Feb"]
[null,null,null,null,null,null,null,null,null,null,"Mar"]
[null,null,null,null,null,null,null,null,null,null,"Apr"]
[null,null,null,null,null,null,null,null,null,null,"May"]
[null,null,null,null,null,null,null,null,null,null,"Jun"]
[null,null,null,null,null,null,null,null,null,null,"Jul"]
[null,null,null,null,null,null,null,null,null,null,"Aug"]
[null,null,null,null,null,null,null,null,null,null,"Sep"]
[null,null,null,null,null,null,null,null,null,null,"Oct"]
[null,null,null,null,null,null,null,null,null,null,"Nov"]
[null,null,null,null,null,null,null,null,null,null,"Dec"]
[null,null,null,null,null,null,null,null,null,null,"Annual",{"$f":"AVERAGE(L70:L81)","v":{"$error":"#DIV/0!"}},{"$f":"MAX(M70:M81)","v":0},{"$f":"AVERAGE(N70:N81)","v":{"$error":"#DIV/0!"}},{"$f":"MAX(O70:O81)","v":0}]

{"sheet":"Template changes log","index":22,"n_rows":23,"n_cols":3,"rows_kept":23,"cut":false,"hidden":false,"merged":[]}
["Log of changes to template (Environment Agency use only)"]
[]
["Date","Description of change","New version number and date"]
["2024-01-16","Air (periodic) tab: corrected default O2 reference from 6 to 11% ","Version 23.5a (for incinerators) - 16/01/2024"]
["2024-09-23","Air (periodic) tab: corrected symbol for Thallium to Tl"]
["2024-09-23","Air (periodic) tab: removed last year's references to different emission limit values applying from 03/12/23 and updated all relevant ELVs"]
["2024-09-23","Tabs for continuously monitored pollutants (HCl, SO2 etc.): changed terminology in table headings to improve clarity"]
["2024-09-23","Tabs for continuously monitored pollutants (HCl, SO2 etc.): removed last year's references to different emission limit values applying from 03/12/23 and updated all relevant ELVs"]
["2024-09-23","Perf 1 tab: updated formula for water usage to report m3 rather than litres and corrected error with formula copying operator name"]
["2024-09-23","Operational Summary tab: table added on start-ups and shut-downs"]
["2024-09-23","Operational Summary tab: table added on dioxins and mercury protocols"]
["2024-09-23","Operational Summary tab: table added on AST, QAL 2 and calibration functions"]
["2024-09-23","CO2 N2O tab: various changes made to notes to reflect the fact that most plants should now have calibrated CEMS and flow meters + some have C14 samplers and more up to date industry data","Version 24a (for incinerators) - 23/09/24"]
["2024-11-08","CO2 N2O tab: Changed the N2O CO2 equivalence factor from 298 to 265 in line with recently updated government greenhouse gas figures: https://www.gov.uk/government/publications/greenhouse-gas-reporting-conversion-factors-2024"]
["2024-11-08","CO2 N2O tab: Added an additional requirement for municipal EfW plants to state the yearly average biogenic percentage of the waste by mass, and reference to a document which sets out a methodology for calculating NCV of waste from the results of C14 sampling."]
["2024-11-08","Permit Compliance tab: Two additional columns added + explanatory notes to the table entitled \"Summary of non-compliances under the permit\" to allow CCS scores to be stated where relevant. "]
["2024-11-08","Residue Quality tab: Note added explaining application of TOC and LOI limits and asking operators to report both metrics where measured. ","Version 24.1a (for incinerators) - 08/11/24"]
["2024-11-27","Operational Summary tab: table added on start-ups and shut-downs","Version 24.2a (for incinerators) - 27/11/24"]
["2025-11-27","Cover Page: Print as PDF and Print Report and pdf buttons deleted and blank columns removed; contents page deleted","Version 25.1a (for incinerators) - 27/11/25"]
["2025-11-27","Residue Quality tab renamed to \"Residues\", and Summary of residue handling table moved from Operational Summary tab to Residues tab."]
["2025-11-27","Various changes made to the Operational Data tab including\n•\tReformatting of the rows under the Operational data heading (Rows 3-8) to make it clearer what information is required. \n•\tAmendment of the rows under the Energy Usage / Export heading (Rows 26-32) to calculate an “indicative parasitic load” (now excluding energy imported)\n•\tAmendment of the unit for gas usage from cubic feet to cubic metres (Row 50) \n•\tSome amendments to the first 2 notes and other minor edits\n•\tDeleted \"Overall Availability, mean avg. of all lines, hrs\" row"]
["2025-11-27","Operational Summary tab: Note added requiring all emergency shut-downs be listed, irrespective of whether or not they were reportable. "]
["2025-11-27","CO2 N2O tab: Note added to ask operators to ensure that relevant data reported here matches that which will be submitted under the Pollution Inventory"]